Workbook

Sheet Menú
C3: Formulario Sostenibilidad Proveedores Bienes y Servicios
C4: Proveedor Servicios
C6: Tipo de Empresa | G6: Validar Clasificación
C7: Proveedor Razón Social
C8: Nit
C9: Fecha Diligenciamiento
C10: Categoría Otorgada | E10: =IFERROR(VLOOKUP(E31,Categoria!E14:F418,2,FALSE), " ") -> 
D12: Evaluación Criterios de Sostenibilidad
E13: Dimensiones
E14: Ambiental | F14: Social | G14: Ética | H14: Económica | I14: Total
C15: Porcentaje Cumplimiento | E15: =IFERROR((VLOOKUP(E17,Calificación!D1083:G1122,4,FALSE)), ) -> 0 | F15: =IFERROR((VLOOKUP(F17,Calificación!$D$1083:$G$1122,4,FALSE)), ) -> 0 | G15: =IFERROR((VLOOKUP(G17,Calificación!$D$1083:$G$1122,4,FALSE)), ) -> 0 | H15: =IFERROR((VLOOKUP(H17,Calificación!$D$1083:$G$1122,4,FALSE)), ) -> 0 | I15: =IFERROR((VLOOKUP(I17,Calificación!$D$1083:$G$1122,4,FALSE)), ) -> 0
E16: =CONCATENATE(E6,C23) -> Consumo de Energía, Agua y Cambio Climático | F16: =CONCATENATE(E6,C26) -> Gestión eficiente del uso Materia Prima y Materiales | G16: =CONCATENATE(E6,C27) -> Gestión de los Residuos | H16: =CONCATENATE(E6,C28) -> Responsabilidad Social Empresarial | I16: =CONCATENATE(H6,G23) -> 
E17: =CONCATENATE(E6,E14) -> Ambiental | F17: =CONCATENATE(E6,F14) -> Social | G17: =CONCATENATE(E6,G14) -> Ética | H17: =CONCATENATE(E6,H14) -> Económica | I17: =CONCATENATE(E6,I14) -> Total
C21: Criterio Sostenibilidad | D21: Puntaje Total Obtenido Criterio | E21: % Total Obtenido Criterio | F21: Método de Verificación | J21: Puntaje Total Obtenido Método | K21: Puntuación por Tipo de Empresa | L21: % Total Obtenido Método
C23: Consumo de Energía, Agua y Cambio Climático | D23: =IFERROR((J23+J24+J25), ) -> 0 | E23: =IFERROR((VLOOKUP(E16,Calificación!D1083:G1122,4,FALSE)), ) -> 0 | F23: 1. Eficiencia Energética | J23: =IFERROR(('1.Energía,agua,cambio climático'!F11), ) -> 0 | K23: =CONCATENATE('1.Energía,agua,cambio climático'!C15,"-",Menú!F23) -> -1. Eficiencia Energética | L23: =IFERROR(J23/(VLOOKUP(K23,Metodos!$E$3:$F$34,2,FALSE)), ) -> 0
F24: 2. Cambio Climático | J24: =IFERROR(('1.Energía,agua,cambio climático'!F47), ) -> 0 | K24: =CONCATENATE('1.Energía,agua,cambio climático'!C15,"-",Menú!F24) -> -2. Cambio Climático | L24: =IFERROR(J24/(VLOOKUP(K24,Metodos!$E$3:$F$34,2,FALSE)), ) -> 0
F25: 3. Consumo de agua | J25: =IFERROR(('1.Energía,agua,cambio climático'!F77), ) -> 0 | K25: =CONCATENATE('1.Energía,agua,cambio climático'!C15,"-",Menú!F25) -> -3. Consumo de agua | L25: =IFERROR(J25/(VLOOKUP(K25,Metodos!$E$3:$F$34,2,FALSE)), ) -> 0
C26: Gestión eficiente del uso Materia Prima y Materiales | D26: =IFERROR((J26), ) -> 0 | E26: =IFERROR((VLOOKUP(F16,Calificación!D1083:G1122,4,FALSE)), ) -> 0 | F26: 5. Innovaciones en el Producto o Procesos | J26: =IFERROR(('2.Uso de materias primas'!F42), ) -> 0 | K26: =CONCATENATE('1.Energía,agua,cambio climático'!C15,"-",Menú!F26) -> -5. Innovaciones en el Producto o Procesos | L26: =IFERROR(J26/(VLOOKUP(K26,Metodos!$E$3:$F$34,2,FALSE)), ) -> 0
C27: Gestión de los Residuos | D27: =IFERROR((J27), ) -> 0 | E27: =IFERROR((VLOOKUP(G16,Calificación!D1083:G1122,4,FALSE)), ) -> 0 | F27: 7. Gestión de los Residuos Propios (Sólidos, Líquidos, Gaseosos) | J27: =IFERROR(('3.Residuos'!F25), ) -> 0 | K27: =CONCATENATE('1.Energía,agua,cambio climático'!C15,"-",Menú!F27) -> -7. Gestión de los Residuos Propios (Sólidos, Líquidos, Gaseosos) | L27: =IFERROR(J27/(VLOOKUP(K27,Metodos!$E$3:$F$34,2,FALSE)), ) -> 0
C28: Responsabilidad Social Empresarial | D28: =IFERROR((J28+J29), ) -> 0 | E28: =IFERROR((VLOOKUP(H16,Calificación!D1083:G1122,4,FALSE)), ) -> 0 | F28: 8. Políticas de Responsabilidad Social y Ambiental | J28: =IFERROR(('4. RSE'!F9), ) -> 0 | K28: =CONCATENATE('1.Energía,agua,cambio climático'!C15,"-",Menú!F28) -> -8. Políticas de Responsabilidad Social y Ambiental | L28: =IFERROR(J28/(VLOOKUP(K28,Metodos!$E$3:$F$34,2,FALSE)), ) -> 0
F29: 9. Seguridad Industrial y Salud Ocupacional | J29: =IFERROR(('4. RSE'!F83), ) -> 0 | K29: =CONCATENATE('1.Energía,agua,cambio climático'!C15,"-",Menú!F29) -> -9. Seguridad Industrial y Salud Ocupacional | L29: =IFERROR(J29/(VLOOKUP(K29,Metodos!$E$3:$F$34,2,FALSE)), ) -> 0
C30: Total | D30: =SUM(D23:D29) -> 0 | E30: =ROUND(I15,2) -> 0 | J30: =SUM(J23:J29) -> 0
E31: =CONCATENATE(E6,E30) -> 0
C33: Huella de carbono e Hídrica | D33: En esta hoja usted registrara los datos solicitados en la Calculadora de Huella de Carbono e Hídrica, en caso de que su organización tenga implementado trabajo en casa, home office o wework diligenciar el punto 6. Calculadora Huella- homeOffice.
C34: Nota: Si usted es proveedor de bienes y servicios por favor solo diligenciar el formulario de Bienes
B35: ESTE DOCUMENTO Y LOS CONTENIDOS EN ÉL INCLUIDOS SE ENCUENTRAN PROTEGIDOS POR LAS NORMAS DE PROPIEDAD INTELECTUAL. LA PONTIFICIA UNIVERSIDAD JAVERIANA SE RESERVA EL DERECHO DE AUTORIZAR O PROHIBIR CUALQUIER USO O EXPLOTACIÓN DISTINTO PARA EL QUE FUERON CREADOS. LO ANTERIOR, SO PENA DE LAS SANCIONES Y ACCIONES ESTABLECIDAS EN LA LEY."
C40: VERSIÓN: 2 | F40: FECHA: Septiembre2023

Sheet 1.Energía,agua,cambio climático
G3: Menú | I3: Siguiente Criterio
F5: Criterio Sostenible | G5: CONSUMO DE ENERGÍA, AGUA Y CAMBIO CLIMÁTICO
B7: No. | F7: Total | G7: EFICIENCIA ENERGÉTICA
F9: =F11+F47+F77 -> 0
F11: =F15+F19+F20+F21+F22+F23+F24+F28+F32+F37+F38+F39+F40+F41+F42+F43+F44 -> 0
B13: **Seleccione su respuesta de la lista desplegable que se encuentra en los recuadros de color azul
H14: Seleccione la opción
B15: 1.1 | C15: =IF(Menú!$E$6="Micro","M",IF(Menú!$E$6="Pequeña","P",IF(Menú!$E$6="Mediana","Me",IF(Menú!$E$6="Grande","G"," " )))) ->  | D15: =H15 -> 0 | E15: =CONCATENATE(B15,"-",C15,"-",D15) -> 1.1- -0 | F15: =IFERROR(VLOOKUP(E15,Calificación!$E$2:$F$9250,2,FALSE), 0) -> 0 | G15: ¿Utiliza energías renovables ?
G16: Si su respuesta es NO,diríjase a la pregunta 1.4
I18: Seleccione la opción
B19: 1.2 | C19: =IF(Menú!$E$6="Micro","M",IF(Menú!$E$6="Pequeña","P",IF(Menú!$E$6="Mediana","Me",IF(Menú!$E$6="Grande","G"," " )))) ->  | D19: =I19 -> 0 | E19: =CONCATENATE(B19,"-",C19,"-",D19) -> 1.2- -0 | F19: =IFERROR(VLOOKUP(E19,Calificación!$E$2:$F$1020,2,FALSE), 0 ) -> 0 | G19: ¿Cuáles de las siguientes energías renovables utiliza? | H19: Fotovoltaica
B20: 1.21 | C20: =IF(Menú!$E$6="Micro","M",IF(Menú!$E$6="Pequeña","P",IF(Menú!$E$6="Mediana","Me",IF(Menú!$E$6="Grande","G"," " )))) ->  | D20: =I20 -> 0 | E20: 1.21- -0 | F20: =IFERROR(VLOOKUP(E20,Calificación!$E$2:$F$1020,2,FALSE), 0) -> 0 | G20: Adjunte la información de soporte en el Formato de Evidencia | H20: Eólica
B21: 1.22 | C21: =IF(Menú!$E$6="Micro","M",IF(Menú!$E$6="Pequeña","P",IF(Menú!$E$6="Mediana","Me",IF(Menú!$E$6="Grande","G"," " )))) ->  | D21: =I21 -> 0 | E21: 1.22- -0 | F21: =IFERROR(VLOOKUP(E21,Calificación!$E$2:$F$1020,2,FALSE), 0) -> 0 | H21: Cinética
B22: 1.23 | C22: =IF(Menú!$E$6="Micro","M",IF(Menú!$E$6="Pequeña","P",IF(Menú!$E$6="Mediana","Me",IF(Menú!$E$6="Grande","G"," " )))) ->  | D22: 0 | E22: 1.23- -0 | F22: =IFERROR(VLOOKUP(E22,Calificación!$E$2:$F$1020,2,FALSE),0) -> 0 | H22: Mareomotriz
B23: 1.24 | C23: =IF(Menú!$E$6="Micro","M",IF(Menú!$E$6="Pequeña","P",IF(Menú!$E$6="Mediana","Me",IF(Menú!$E$6="Grande","G"," " )))) ->  | D23: =I23 -> 0 | E23: 1.24- -0 | F23: =IFERROR(VLOOKUP(E23,Calificación!$E$2:$F$1020,2,FALSE),0) -> 0 | H23: Biomasa
B24: 1.25 | C24: =IF(Menú!$E$6="Micro","M",IF(Menú!$E$6="Pequeña","P",IF(Menú!$E$6="Mediana","Me",IF(Menú!$E$6="Grande","G"," " )))) ->  | D24: 0 | E24: 1.25- -0 | F24: =IFERROR(VLOOKUP(E24,Calificación!$E$2:$F$1020,2,FALSE),0) -> 0 | H24: Hidraúlica
H27: Seleccione la opción
B28: 1.3 | C28: =IF(Menú!$E$6="Micro","M",IF(Menú!$E$6="Pequeña","P",IF(Menú!$E$6="Mediana","Me",IF(Menú!$E$6="Grande","G"," " )))) ->  | D28: =H28 -> 0 | E28: =CONCATENATE(B28,"-",C28,"-",D28) -> 1.3- -0 | F28: =IFERROR(VLOOKUP(E28,Calificación!$E$2:$F$1020,2,FALSE),0) -> 0 | G28: Respecto a su consumo total de energía ¿Qué porcentaje proviene de energías renovables?
G29: Adjunte la información de soporte en el Formato de Evidencia
H31: Seleccione la opción
B32: 1.4 | C32: =IF(Menú!$E$6="Micro","M",IF(Menú!$E$6="Pequeña","P",IF(Menú!$E$6="Mediana","Me",IF(Menú!$E$6="Grande","G"," " )))) ->  | D32: =H32 -> 0 | E32: =CONCATENATE(B32,"-",C32,"-",D32) -> 1.4- -0 | F32: =IFERROR(VLOOKUP(E32,Calificación!$E$2:$F$1020,2,FALSE),0) -> 0 | G32: ¿Su empresa cuenta con políticas o lineamientos de eficiencia energética?
G33: Si su respuesta es NO, diríjase a la pregunta 2.1
I36: Seleccione la opción
B37: 1.5 | C37: =IF(Menú!$E$6="Micro","M",IF(Menú!$E$6="Pequeña","P",IF(Menú!$E$6="Mediana","Me",IF(Menú!$E$6="Grande","G"," " )))) ->  | D37: =I37 -> 0 | E37: =CONCATENATE(B37,"-",C37,"-",D37) -> 1.5- -0 | F37: =IFERROR(VLOOKUP(E37,Calificación!$E$2:$F$1020,2,FALSE),0) -> 0 | G37: ¿Cuáles de las siguientes acciones realiza en su empresa? Si su respuesta es "otra" especifique ¿Cuál? | H37: Iluminación eficiente (T5 y Led)
B38: 1.51 | C38: =IF(Menú!$E$6="Micro","M",IF(Menú!$E$6="Pequeña","P",IF(Menú!$E$6="Mediana","Me",IF(Menú!$E$6="Grande","G"," " )))) ->  | D38: =I38 -> 0 | E38: =CONCATENATE(B38,"-",C38,"-",D38) -> 1.51- -0 | F38: =IFERROR(VLOOKUP(E38,Calificación!$E$2:$F$1020,2,FALSE),0) -> 0 | G38: Adjunte la información de soporte en el Formato de Evidencia | H38: Maquinaria operada con motores eléctricos
B39: 1.52 | C39: =IF(Menú!$E$6="Micro","M",IF(Menú!$E$6="Pequeña","P",IF(Menú!$E$6="Mediana","Me",IF(Menú!$E$6="Grande","G"," " )))) ->  | D39: =I39 -> 0 | E39: =CONCATENATE(B39,"-",C39,"-",D39) -> 1.52- -0 | F39: =IFERROR(VLOOKUP(E39,Calificación!$E$2:$F$1020,2,FALSE),0) -> 0 | H39: Flota de vehículos eléctricos
B40: 1.53 | C40: =IF(Menú!$E$6="Micro","M",IF(Menú!$E$6="Pequeña","P",IF(Menú!$E$6="Mediana","Me",IF(Menú!$E$6="Grande","G"," " )))) ->  | D40: =I40 -> 0 | E40: =CONCATENATE(B40,"-",C40,"-",D40) -> 1.53- -0 | F40: =IFERROR(VLOOKUP(E40,Calificación!$E$2:$F$1020,2,FALSE),0) -> 0 | H40: Campañas de eficiencia energética
B41: 1.54 | C41: =IF(Menú!$E$6="Micro","M",IF(Menú!$E$6="Pequeña","P",IF(Menú!$E$6="Mediana","Me",IF(Menú!$E$6="Grande","G"," " )))) ->  | D41: =I41 -> 0 | E41: =CONCATENATE(B41,"-",C41,"-",D41) -> 1.54- -0 | F41: =IFERROR(VLOOKUP(E41,Calificación!$E$2:$F$1020,2,FALSE),0) -> 0 | H41: Sensores de presencia
B42: 1.55 | C42: =IF(Menú!$E$6="Micro","M",IF(Menú!$E$6="Pequeña","P",IF(Menú!$E$6="Mediana","Me",IF(Menú!$E$6="Grande","G"," " )))) ->  | D42: 0 | E42: 1.55- -0 | F42: =IFERROR(VLOOKUP(E42,Calificación!$E$2:$F$1020,2,FALSE),0) -> 0 | H42: Sensores luz día
B43: 1.56 | C43: =IF(Menú!$E$6="Micro","M",IF(Menú!$E$6="Pequeña","P",IF(Menú!$E$6="Mediana","Me",IF(Menú!$E$6="Grande","G"," " )))) ->  | D43: 0 | E43: 1.56- -0 | F43: =IFERROR(VLOOKUP(E43,Calificación!$E$2:$F$1020,2,FALSE),0) -> 0 | H43: Programación horaria
B44: 1.57 | C44: =IF(Menú!$E$6="Micro","M",IF(Menú!$E$6="Pequeña","P",IF(Menú!$E$6="Mediana","Me",IF(Menú!$E$6="Grande","G"," " )))) ->  | D44: =I44 -> 0 | E44: =CONCATENATE(B44,"-",C44,"-",D44) -> 1.57- -0 | F44: =IFERROR(VLOOKUP(E44,Calificación!$E$2:$F$1020,2,FALSE),0) -> 0 | H44: Otra | J44: ¿Cuál?
B47: No. | F47: =F50+F54+F55+F57+F58+F56+F59+F63+F64+F65+F66+F67 -> 0 | G47: CAMBIO CLIMÁTICO
H49: Seleccione la opción
B50: 2.1 | C50: =IF(Menú!$E$6="Micro","M",IF(Menú!$E$6="Pequeña","P",IF(Menú!$E$6="Mediana","Me",IF(Menú!$E$6="Grande","G"," " )))) ->  | D50: =H50 -> 0 | E50: =CONCATENATE(B50,"-",C50,"-",D50) -> 2.1- -0 | F50: =IFERROR(VLOOKUP(E50,Calificación!$E$2:$F$1020,2,FALSE),0) -> 0 | G50: ¿Calcula la huella de carbono en su empresa anualmente?
I53: Seleccione la opción
B54: 2.2 | C54: =IF(Menú!$E$6="Micro","M",IF(Menú!$E$6="Pequeña","P",IF(Menú!$E$6="Mediana","Me",IF(Menú!$E$6="Grande","G"," " )))) ->  | D54: =I54 -> 0 | E54: =CONCATENATE(B54,"-",C54,"-",D54) -> 2.2- -0 | F54: =IFERROR(VLOOKUP(E54,Calificación!$E$2:$F$1020,2,FALSE),0) -> 0 | G54: ¿Cuáles de las siguientes acciones de reducción de huella de carbono realiza en su empresa? Si su respuesta es "otra" especifique ¿Cuál? | H54: Disminución en el uso de materias primas
B55: 2.21 | C55: =IF(Menú!$E$6="Micro","M",IF(Menú!$E$6="Pequeña","P",IF(Menú!$E$6="Mediana","Me",IF(Menú!$E$6="Grande","G"," " )))) ->  | D55: =I55 -> 0 | E55: =CONCATENATE(B55,"-",C55,"-",D55) -> 2.21- -0 | F55: =IFERROR(VLOOKUP(E55,Calificación!$E$2:$F$1020,2,FALSE), 0 ) -> 0 | G55: Adjunte la información de soporte en el Formato de Evidencia | H55: Disminución de empaques y embalajes
B56: 2.22 | C56: =IF(Menú!$E$6="Micro","M",IF(Menú!$E$6="Pequeña","P",IF(Menú!$E$6="Mediana","Me",IF(Menú!$E$6="Grande","G"," " )))) ->  | D56: =I56 -> 0 | E56: 2.22- -0 | F56: =IFERROR(VLOOKUP(E56,Calificación!$E$2:$F$1020,2,FALSE), 0) -> 0 | H56: Ahorro de consumo de agua
B57: 2.23 | C57: =IF(Menú!$E$6="Micro","M",IF(Menú!$E$6="Pequeña","P",IF(Menú!$E$6="Mediana","Me",IF(Menú!$E$6="Grande","G"," " )))) ->  | D57: =I57 -> 0 | E57: 2.23- -0 | F57: =IFERROR(VLOOKUP(E57,Calificación!$E$2:$F$1020,2,FALSE), 0) -> 0 | H57: Ahorro de consumo de energía
B58: 2.24 | C58: =IF(Menú!$E$6="Micro","M",IF(Menú!$E$6="Pequeña","P",IF(Menú!$E$6="Mediana","Me",IF(Menú!$E$6="Grande","G"," " )))) ->  | D58: 0 | E58: 2.24- -0 | F58: =IFERROR(VLOOKUP(E58,Calificación!$E$2:$F$1020,2,FALSE),0) -> 0 | H58: Optimización en procesos de distribución
B59: 2.25 | C59: =IF(Menú!$E$6="Micro","M",IF(Menú!$E$6="Pequeña","P",IF(Menú!$E$6="Mediana","Me",IF(Menú!$E$6="Grande","G"," " )))) ->  | D59: =I59 -> 0 | E59: 2.25- -0 | F59: =IFERROR(VLOOKUP(E59,Calificación!$E$2:$F$1020,2,FALSE),0) -> 0 | H59: Otra | J59: ¿Cuál?
I62: Seleccione la opción
B63: 2.3 | C63: =IF(Menú!$E$6="Micro","M",IF(Menú!$E$6="Pequeña","P",IF(Menú!$E$6="Mediana","Me",IF(Menú!$E$6="Grande","G"," " )))) ->  | D63: =I63 -> 0 | E63: =CONCATENATE(B63,"-",C63,"-",D63) -> 2.3- -0 | F63: =IFERROR(VLOOKUP(E63,Calificación!$E$2:$F$1020,2,FALSE),0) -> 0 | G63: ¿Cuáles de las siguientes acciones de compensación de huella de carbono realiza en su empresa? | H63: Siembra de árboles
B64: 2.31 | C64: =IF(Menú!$E$6="Micro","M",IF(Menú!$E$6="Pequeña","P",IF(Menú!$E$6="Mediana","Me",IF(Menú!$E$6="Grande","G"," " )))) ->  | D64: =I64 -> 0 | E64: =CONCATENATE(B64,"-",C64,"-",D64) -> 2.31- -0 | F64: =IFERROR(VLOOKUP(E64,Calificación!$E$2:$F$1020,2,FALSE),0) -> 0 | G64: Si su respuesta es "ninguna de las anteriores" diríjase a la pregunta 3.1 | H64: Inyección de carbono en el subsuelo
B65: 2.32 | C65: =IF(Menú!$E$6="Micro","M",IF(Menú!$E$6="Pequeña","P",IF(Menú!$E$6="Mediana","Me",IF(Menú!$E$6="Grande","G"," " )))) ->  | D65: 0 | E65: 2.32- -0 | F65: =IFERROR(VLOOKUP(E65,Calificación!$E$2:$F$1020,2,FALSE),0) -> 0 | G65: Adjunte la información de soporte en el Formato de Evidencia | H65: Elaboración de materias primas a base de carbono
B66: 2.33 | C66: =IF(Menú!$E$6="Micro","M",IF(Menú!$E$6="Pequeña","P",IF(Menú!$E$6="Mediana","Me",IF(Menú!$E$6="Grande","G"," " )))) ->  | D66: 0 | E66: 2.33- -0 | F66: =IFERROR(VLOOKUP(E66,Calificación!$E$2:$F$1020,2,FALSE),0) -> 0 | H66: Granjas de carbono
B67: 2.34 | C67: =IF(Menú!$E$6="Micro","M",IF(Menú!$E$6="Pequeña","P",IF(Menú!$E$6="Mediana","Me",IF(Menú!$E$6="Grande","G"," " )))) ->  | D67: 0 | E67: 2.34- -0 | F67: =IFERROR(VLOOKUP(E67,Calificación!$E$2:$F$1020,2,FALSE),0) -> 0 | H67: Ninguna de las anteriores
H70: Seleccione la opción
B71: 2.4 | G71: Teniendo en cuenta la respuesta anterior, ¿Cuántas toneladas de CO2 equivalente compensó el año inmediatamente anterior? | I71: Ton C02/equiv
B77: No. | F77: =F80+F85+F86+F87+F88+F89+F90 -> 0 | G77: CONSUMO DE AGUA
H79: Seleccione la opción
B80: 3.1 | C80: =IF(Menú!$E$6="Micro","M",IF(Menú!$E$6="Pequeña","P",IF(Menú!$E$6="Mediana","Me",IF(Menú!$E$6="Grande","G"," " )))) ->  | D80: =H80 -> 0 | E80: =CONCATENATE(B80,"-",C80,"-",D80) -> 3.1- -0 | F80: =IFERROR(VLOOKUP(E80,Calificación!$E$2:$F$1020,2,FALSE),0) -> 0 | G80: ¿Su empresa cuenta con políticas o lineamientos de reducción en el consumo de agua?
G81: Si su respuesta es NO, diríjase a la pestaña 2. Uso de materias primas
I84: Seleccione la opción
B85: 3.2 | C85: =IF(Menú!$E$6="Micro","M",IF(Menú!$E$6="Pequeña","P",IF(Menú!$E$6="Mediana","Me",IF(Menú!$E$6="Grande","G"," " )))) ->  | D85: =I85 -> 0 | E85: =CONCATENATE(B85,"-",C85,"-",D85) -> 3.2- -0 | F85: =IFERROR(VLOOKUP(E85,Calificación!$E$2:$F$1020,2,FALSE),0) -> 0 | G85: ¿Cuáles de las siguientes acciones realiza en su empresa? Si su respuesta es "otra" especifique ¿Cuál? | H85: Implementación de sanitarios y grifos ahorradores de agua
B86: 3.21 | C86: =IF(Menú!$E$6="Micro","M",IF(Menú!$E$6="Pequeña","P",IF(Menú!$E$6="Mediana","Me",IF(Menú!$E$6="Grande","G"," " )))) ->  | D86: 0 | E86: 3.21- -0 | F86: =IFERROR(VLOOKUP(E86,Calificación!$E$2:$F$1020,2,FALSE),0) -> 0 | G86: Adjunte la información de soporte en el Formato de Evidencia | H86: Mantenimiento preventivo
B87: 3.22 | C87: =IF(Menú!$E$6="Micro","M",IF(Menú!$E$6="Pequeña","P",IF(Menú!$E$6="Mediana","Me",IF(Menú!$E$6="Grande","G"," " )))) ->  | D87: 0 | E87: 3.22- -0 | F87: =IFERROR(VLOOKUP(E87,Calificación!$E$2:$F$1020,2,FALSE),0) -> 0 | H87: Reutilización de aguas lluvias
B88: 3.23 | C88: =IF(Menú!$E$6="Micro","M",IF(Menú!$E$6="Pequeña","P",IF(Menú!$E$6="Mediana","Me",IF(Menú!$E$6="Grande","G"," " )))) ->  | D88: 0 | E88: 3.23- -0 | F88: =IFERROR(VLOOKUP(E88,Calificación!$E$2:$F$1020,2,FALSE),0) -> 0 | H88: Innovación tecnológica
B89: 3.24 | C89: =IF(Menú!$E$6="Micro","M",IF(Menú!$E$6="Pequeña","P",IF(Menú!$E$6="Mediana","Me",IF(Menú!$E$6="Grande","G"," " )))) ->  | D89: 0 | E89: 3.24- -0 | F89: =IFERROR(VLOOKUP(E89,Calificación!$E$2:$F$1020,2,FALSE),0) -> 0 | H89: Campañas de sensibilización
B90: 3.25 | C90: =IF(Menú!$E$6="Micro","M",IF(Menú!$E$6="Pequeña","P",IF(Menú!$E$6="Mediana","Me",IF(Menú!$E$6="Grande","G"," " )))) ->  | D90: 0 | E90: 3.25- -0 | F90: =IFERROR(VLOOKUP(E90,Calificación!$E$2:$F$1020,2,FALSE),0) -> 0 | H90: Otra | J90: ¿Cuál?
B93: ESTE DOCUMENTO Y LOS CONTENIDOS EN ÉL INCLUIDOS SE ENCUENTRAN PROTEGIDOS POR LAS NORMAS DE PROPIEDAD INTELECTUAL. LA PONTIFICIA UNIVERSIDAD JAVERIANA SE RESERVA EL DERECHO DE AUTORIZAR O PROHIBIR CUALQUIER USO O EXPLOTACIÓN DISTINTO PARA EL QUE FUERON CREADOS. LO ANTERIOR, SO PENA DE LAS SANCIONES Y ACCIONES ESTABLECIDAS EN LA LEY."

Sheet 2.Uso de materias primas
G2: Menú | H2: Volver criterio anterior | I2: Siguiente Criterio
F4: Criterio Sostenible | G4: GESTIÓN EFICIENTE DEL USO MATERIA PRIMA Y MATERIALES
B6: No. | F6: Total | G6: EXTRACCIÓN Y PROCEDENCIA DE LOS RECURSOS
F8: =F10+F42 -> 0
F10: =+F28+F38+F29+F31+F30+F34+F39+F32+F33+F19+F20+F22+F21+F23+F15 -> 0
B12: **Seleccione su respuesta de la lista desplegable que se encuentra en los recuadros de color azul
B15: 4.1 | C15: =IF(Menú!$E$6="Micro","M",IF(Menú!$E$6="Pequeña","P",IF(Menú!$E$6="Mediana","Me",IF(Menú!$E$6="Grande","G"," " )))) ->  | D15: =H15 -> 0 | E15: =CONCATENATE(B15,"-",C15,"-",D15) -> 4.1- -0 | F15: =IFERROR(VLOOKUP(E15,Calificación!$E$2:$F$1020,2,FALSE),0) -> 0 | G15: ¿Su empresa ha realizado acciones de reemplazo de materia primas derivadas del petróleo?
G16: Adjunte la información de soporte en el Formato de Evidencia
I18: Seleccione la opción
B19: 4.2 | C19: =IF(Menú!$E$6="Micro","M",IF(Menú!$E$6="Pequeña","P",IF(Menú!$E$6="Mediana","Me",IF(Menú!$E$6="Grande","G"," " )))) ->  | D19: =I19 -> 0 | E19: =CONCATENATE(B19,"-",C19,"-",D19) -> 4.2- -0 | F19: =IFERROR(VLOOKUP(E19,Calificación!$E$2:$F$1020,2,FALSE),0) -> 0 | G19: ¿Cuáles de las siguientes acciones de reemplazo de materias primas realiza en su empresa? Si su respuesta es "otra" especifique ¿Cuál? | H19: Reemplazo de referencias plásticas por insumos biodegradables
B20: 4.21 | C20: =IF(Menú!$E$6="Micro","M",IF(Menú!$E$6="Pequeña","P",IF(Menú!$E$6="Mediana","Me",IF(Menú!$E$6="Grande","G"," " )))) ->  | D20: =I20 -> 0 | E20: =CONCATENATE(B20,"-",C20,"-",D20) -> 4.21- -0 | F20: =IFERROR(VLOOKUP(E20,Calificación!$E$2:$F$1020,2,FALSE),0) -> 0 | G20: Adjunte la información de soporte en el Formato de Evidencia | H20: Eliminación y/o disminución de uso de plástico e icopor
B21: 4.22 | C21: =IF(Menú!$E$6="Micro","M",IF(Menú!$E$6="Pequeña","P",IF(Menú!$E$6="Mediana","Me",IF(Menú!$E$6="Grande","G"," " )))) ->  | D21: =I21 -> 0 | E21: =CONCATENATE(B21,"-",C21,"-",D21) -> 4.22- -0 | F21: =IFERROR(VLOOKUP(E21,Calificación!$E$2:$F$1020,2,FALSE),0) -> 0 | H21: Incorporación de bioplásticos
B22: 4.23 | C22: =IF(Menú!$E$6="Micro","M",IF(Menú!$E$6="Pequeña","P",IF(Menú!$E$6="Mediana","Me",IF(Menú!$E$6="Grande","G"," " )))) ->  | D22: =I22 -> 0 | E22: =CONCATENATE(B22,"-",C22,"-",D22) -> 4.23- -0 | F22: =IFERROR(VLOOKUP(E22,Calificación!$E$2:$F$1020,2,FALSE),0) -> 0 | H22: Innovación en materiales
B23: 4.24 | C23: =IF(Menú!$E$6="Micro","M",IF(Menú!$E$6="Pequeña","P",IF(Menú!$E$6="Mediana","Me",IF(Menú!$E$6="Grande","G"," " )))) ->  | D23: =I23 -> 0 | E23: =CONCATENATE(B23,"-",C23,"-",D23) -> 4.24- -0 | F23: =IFERROR(VLOOKUP(E23,Calificación!$E$2:$F$1020,2,FALSE),0) -> 0 | H23: Otra | J23: ¿Cuál?
I27: Seleccione la opción
B28: 4.3 | C28: =IF(Menú!$E$6="Micro","M",IF(Menú!$E$6="Pequeña","P",IF(Menú!$E$6="Mediana","Me",IF(Menú!$E$6="Grande","G"," " )))) ->  | D28: =I28 -> 0 | E28: =CONCATENATE(B28,"-",C28,"-",D28) -> 4.3- -0 | F28: =IFERROR(VLOOKUP(E28,Calificación!$E$2:$F$1020,2,FALSE),0) -> 0 | G28: Evita el uso y/o sus productos son libres de: | H28: Asbesto
B29: 4.31 | C29: =IF(Menú!$E$6="Micro","M",IF(Menú!$E$6="Pequeña","P",IF(Menú!$E$6="Mediana","Me",IF(Menú!$E$6="Grande","G"," " )))) ->  | D29: 0 | E29: =CONCATENATE(B29,"-",C29,"-",D29) -> 4.31- -0 | F29: =IFERROR(VLOOKUP(E29,Calificación!$E$2:$F$1020,2,FALSE),0) -> 0 | G29: Adjunte la información de soporte en el Formato de Evidencia | H29: Benzeno, Formaldheido, Xileno
B30: 4.32 | C30: =IF(Menú!$E$6="Micro","M",IF(Menú!$E$6="Pequeña","P",IF(Menú!$E$6="Mediana","Me",IF(Menú!$E$6="Grande","G"," " )))) ->  | D30: 0 | E30: =CONCATENATE(B30,"-",C30,"-",D30) -> 4.32- -0 | F30: =IFERROR(VLOOKUP(E30,Calificación!$E$2:$F$1020,2,FALSE),0) -> 0 | H30: Metales Pesados
B31: 4.33 | C31: =IF(Menú!$E$6="Micro","M",IF(Menú!$E$6="Pequeña","P",IF(Menú!$E$6="Mediana","Me",IF(Menú!$E$6="Grande","G"," " )))) ->  | D31: 0 | E31: =CONCATENATE(B31,"-",C31,"-",D31) -> 4.33- -0 | F31: =IFERROR(VLOOKUP(E31,Calificación!$E$2:$F$1020,2,FALSE),0) -> 0 | H31: BPA, Bisfenol-A
B32: 4.34 | C32: =IF(Menú!$E$6="Micro","M",IF(Menú!$E$6="Pequeña","P",IF(Menú!$E$6="Mediana","Me",IF(Menú!$E$6="Grande","G"," " )))) ->  | D32: 0 | E32: =CONCATENATE(B32,"-",C32,"-",D32) -> 4.34- -0 | F32: =IFERROR(VLOOKUP(E32,Calificación!$E$2:$F$1020,2,FALSE),0) -> 0 | H32: Tensoactivos
B33: 4.35 | C33: =IF(Menú!$E$6="Micro","M",IF(Menú!$E$6="Pequeña","P",IF(Menú!$E$6="Mediana","Me",IF(Menú!$E$6="Grande","G"," " )))) ->  | D33: 0 | E33: 4.35- -0 | F33: =IFERROR(VLOOKUP(E33,Calificación!$E$2:$F$1020,2,FALSE),0) -> 0 | H33: Cloro
B34: 4.36 | C34: =IF(Menú!$E$6="Micro","M",IF(Menú!$E$6="Pequeña","P",IF(Menú!$E$6="Mediana","Me",IF(Menú!$E$6="Grande","G"," " )))) ->  | D34: 0 | E34: 4.36- -0 | F34: =IFERROR(VLOOKUP(E34,Calificación!$E$2:$F$1020,2,FALSE),0) -> 0 | H34: Dioxinas
I37: Seleccione la/las opciónes
B38: 4.4 | C38: =IF(Menú!$E$6="Micro","M",IF(Menú!$E$6="Pequeña","P",IF(Menú!$E$6="Mediana","Me",IF(Menú!$E$6="Grande","G"," " )))) ->  | D38: =I38 -> 0 | E38: =CONCATENATE(B38,"-",C38,"-",D38) -> 4.4- -0 | F38: =IFERROR(VLOOKUP(E38,Calificación!$E$2:$F$1020,2,FALSE),0) -> 0 | G38: El origen de su materia prima y/o materiales es: | H38: Internacional
B39: 4.41 | C39: =IF(Menú!$E$6="Micro","M",IF(Menú!$E$6="Pequeña","P",IF(Menú!$E$6="Mediana","Me",IF(Menú!$E$6="Grande","G"," " )))) ->  | D39: =I39 -> 0 | E39: =CONCATENATE(B39,"-",C39,"-",D39) -> 4.41- -0 | F39: =IFERROR(VLOOKUP(E39,Calificación!$E$2:$F$1020,2,FALSE),0) -> 0 | H39: Nacional
B42: No. | F42: =F45+F51+F52+F53+F54+F55 -> 0 | G42: INNOVACIONES EN EL PRODUCTO Y/O PROCESOS
H44: Seleccione la opción
B45: 5.1 | C45: =IF(Menú!$E$6="Micro","M",IF(Menú!$E$6="Pequeña","P",IF(Menú!$E$6="Mediana","Me",IF(Menú!$E$6="Grande","G"," " )))) ->  | D45: =H45 -> 0 | E45: =CONCATENATE(B45,"-",C45,"-",D45) -> 5.1- -0 | F45: =IFERROR(VLOOKUP(E45,Calificación!$E$2:$F$1020,2,FALSE),0) -> 0 | G45: Su empresa cuenta con políticas y/o lineamientos de innovación en sus procesos
G46: Si su respuesta es NO, diríjase a la pestaña 3. Residuos
I50: Seleccione la opción
B51: 5.2 | C51: =IF(Menú!$E$6="Micro","M",IF(Menú!$E$6="Pequeña","P",IF(Menú!$E$6="Mediana","Me",IF(Menú!$E$6="Grande","G"," " )))) ->  | D51: =I51 -> 0 | E51: =CONCATENATE(B51,"-",C51,"-",D51) -> 5.2- -0 | F51: =IFERROR(VLOOKUP(E51,Calificación!$E$2:$F$1020,2,FALSE),0) -> 0 | G51: ¿Qué tipo de innovaciones tiene implementadas actualmente? | H51: Innovación de Producto
B52: 5.21 | C52: =IF(Menú!$E$6="Micro","M",IF(Menú!$E$6="Pequeña","P",IF(Menú!$E$6="Mediana","Me",IF(Menú!$E$6="Grande","G"," " )))) ->  | D52: =I52 -> 0 | E52: =CONCATENATE(B52,"-",C52,"-",D52) -> 5.21- -0 | F52: =IFERROR(VLOOKUP(E52,Calificación!$E$2:$F$1020,2,FALSE),0) -> 0 | G52: Adjunte la información de soporte en el Formato de Evidencia | H52: Innovación de Proceso
B53: 5.22 | C53: =IF(Menú!$E$6="Micro","M",IF(Menú!$E$6="Pequeña","P",IF(Menú!$E$6="Mediana","Me",IF(Menú!$E$6="Grande","G"," " )))) ->  | D53: =I53 -> 0 | E53: 5.22- -0 | F53: =IFERROR(VLOOKUP(E53,Calificación!$E$2:$F$1020,2,FALSE),0) -> 0 | H53: Innovación de Transporte
B54: 5.23 | C54: =IF(Menú!$E$6="Micro","M",IF(Menú!$E$6="Pequeña","P",IF(Menú!$E$6="Mediana","Me",IF(Menú!$E$6="Grande","G"," " )))) ->  | D54: =I54 -> 0 | E54: 5.23- -0 | F54: =IFERROR(VLOOKUP(E54,Calificación!$E$2:$F$1020,2,FALSE),0) -> 0 | H54: Innovación de Empaque
B55: 5.24 | C55: =IF(Menú!$E$6="Micro","M",IF(Menú!$E$6="Pequeña","P",IF(Menú!$E$6="Mediana","Me",IF(Menú!$E$6="Grande","G"," " )))) ->  | D55: =I55 -> 0 | E55: 5.24- -0 | F55: =IFERROR(VLOOKUP(E55,Calificación!$E$2:$F$1020,2,FALSE),0) -> 0 | H55: Innovación en Comunicación
B57: ESTE DOCUMENTO Y LOS CONTENIDOS EN ÉL INCLUIDOS SE ENCUENTRAN PROTEGIDOS POR LAS NORMAS DE PROPIEDAD INTELECTUAL. LA PONTIFICIA UNIVERSIDAD JAVERIANA SE RESERVA EL DERECHO DE AUTORIZAR O PROHIBIR CUALQUIER USO O EXPLOTACIÓN DISTINTO PARA EL QUE FUERON CREADOS. LO ANTERIOR, SO PENA DE LAS SANCIONES Y ACCIONES ESTABLECIDAS EN LA LEY."

Sheet 3.Residuos
G2: Menú | H2: Volver criterio anterior | I2: Siguiente Criterio
F4: Criterio Sostenible | G4: GESTIÓN DE LOS RESIDUOS
B6: No. | F6: Total | G6: REINCORPORACIÓN AL CICLO PRODUCTIVO
B8: **Seleccione su respuesta de la lista desplegable que se encuentra en los recuadros de color azul
F10: =F12+F17+F21 -> 0
I11: Seleccione la opción
B12: 6.1 | C12: =IF(Menú!$E$6="Micro","M",IF(Menú!$E$6="Pequeña","P",IF(Menú!$E$6="Mediana","Me",IF(Menú!$E$6="Grande","G"," " )))) ->  | D12: =I12 -> 0 | E12: =CONCATENATE(B12,"-",C12,"-",D12) -> 6.1- -0 | F12: =IFERROR(VLOOKUP(E12,Calificación!$E$2:$F$1020,2,FALSE),0) -> 0 | G12: ¿Su empresa incorpora en su ciclo productivo materiales previamente utilizados en la elaboración de otros productos y/o procesos?
H13: Si su respuesta es NO, diríjase a la pregunta 6.3
I16: Seleccione la opción
B17: 6.2 | C17: =IF(Menú!$E$6="Micro","M",IF(Menú!$E$6="Pequeña","P",IF(Menú!$E$6="Mediana","Me",IF(Menú!$E$6="Grande","G"," " )))) ->  | D17: =I17 -> 0 | E17: =CONCATENATE(B17,"-",C17,"-",D17) -> 6.2- -0 | F17: =IFERROR(VLOOKUP(E17,Calificación!$E$2:$F$1020,2,FALSE),0) -> 0 | G17: ¿Qué porcentaje de materiales previamente utilizados en la elaboración de otros productos y/o proceso, incorpora en su ciclo productivo?
G18: Adjunte la información de soporte en el Formato de Evidencia
I20: Seleccione la opción
B21: 6.3 | C21: =IF(Menú!$E$6="Micro","M",IF(Menú!$E$6="Pequeña","P",IF(Menú!$E$6="Mediana","Me",IF(Menú!$E$6="Grande","G"," " )))) ->  | D21: =I21 -> 0 | E21: =CONCATENATE(B21,"-",C21,"-",D21) -> 6.3- -0 | F21: =IFERROR(VLOOKUP(E21,Calificación!$E$2:$F$1020,2,FALSE),0) -> 0 | H21: ¿Su empresa incorpora aguas residuales tratadas provenientes de sus actividades en sus procesos productivos?
G22: Adjunte la información de soporte en el Formato de Evidencia
B25: No. | F25: =F28+F33+F34+F35+F36+F37+F38+F39+F40+F44+F45+F46+F47+F48+F52+F53+F54+F55+F56+F57+F62 -> 0 | G25: GESTIÓN DE LOS RESIDUOS PROPIOS (SÓLIDOS, LÍQUIDOS, GASEOSOS)
I27: Seleccione la opción
B28: 7.1 | C28: =IF(Menú!$E$6="Micro","M",IF(Menú!$E$6="Pequeña","P",IF(Menú!$E$6="Mediana","Me",IF(Menú!$E$6="Grande","G"," " )))) ->  | D28: =I28 -> 0 | E28: =CONCATENATE(B28,"-",C28,"-",D28) -> 7.1- -0 | F28: =IFERROR(VLOOKUP(E28,Calificación!$E$2:$F$1020,2,FALSE),0) -> 0 | G28: ¿Su empresa cuenta con un plan de gestión integral de los residuos?
I32: Seleccione la opción
B33: 7.2 | C33: =IF(Menú!$E$6="Micro","M",IF(Menú!$E$6="Pequeña","P",IF(Menú!$E$6="Mediana","Me",IF(Menú!$E$6="Grande","G"," " )))) ->  | D33: =J33 -> 0 | E33: =CONCATENATE(B33,"-",C33,"-",D33) -> 7.2- -0 | F33: =IFERROR(VLOOKUP(E33,Calificación!$E$2:$F$1020,2,FALSE),0) -> 0 | H33: ¿Cuáles acciones de reducción de residuos realiza en su empresa? Si su respuesta es "otra" especifique ¿Cuál? | I33: Disminución en el uso de empaques y embalajes
B34: 7.21 | C34: =IF(Menú!$E$6="Micro","M",IF(Menú!$E$6="Pequeña","P",IF(Menú!$E$6="Mediana","Me",IF(Menú!$E$6="Grande","G"," " )))) ->  | D34: =J34 -> 0 | E34: =CONCATENATE(B34,"-",C34,"-",D34) -> 7.21- -0 | F34: =IFERROR(VLOOKUP(E34,Calificación!$E$2:$F$1020,2,FALSE),0) -> 0 | H34: Adjunte la información de soporte en el Formato de Evidencia | I34: Disminución en el uso de materias primas
B35: 7.22 | C35: =IF(Menú!$E$6="Micro","M",IF(Menú!$E$6="Pequeña","P",IF(Menú!$E$6="Mediana","Me",IF(Menú!$E$6="Grande","G"," " )))) ->  | D35: 0 | E35: 7.22- -0 | F35: =IFERROR(VLOOKUP(E35,Calificación!$E$2:$F$1020,2,FALSE),0) -> 0 | I35: Digitalización de documentos
B36: 7.23 | C36: =IF(Menú!$E$6="Micro","M",IF(Menú!$E$6="Pequeña","P",IF(Menú!$E$6="Mediana","Me",IF(Menú!$E$6="Grande","G"," " )))) ->  | D36: 0 | E36: 7.23- -0 | F36: =IFERROR(VLOOKUP(E36,Calificación!$E$2:$F$1020,2,FALSE),0) -> 0 | I36: Acciones de impresión inteligente
B37: 7.24 | C37: =IF(Menú!$E$6="Micro","M",IF(Menú!$E$6="Pequeña","P",IF(Menú!$E$6="Mediana","Me",IF(Menú!$E$6="Grande","G"," " )))) ->  | D37: 0 | E37: 7.24- -0 | F37: =IFERROR(VLOOKUP(E37,Calificación!$E$2:$F$1020,2,FALSE),0) -> 0 | I37: Implementación de baterías sanitarias ahorradoras
B38: 7.25 | C38: =IF(Menú!$E$6="Micro","M",IF(Menú!$E$6="Pequeña","P",IF(Menú!$E$6="Mediana","Me",IF(Menú!$E$6="Grande","G"," " )))) ->  | D38: 0 | E38: 7.25- -0 | F38: =IFERROR(VLOOKUP(E38,Calificación!$E$2:$F$1020,2,FALSE),0) -> 0 | I38: Compactadoras de residuos
B39: 7.26 | C39: =IF(Menú!$E$6="Micro","M",IF(Menú!$E$6="Pequeña","P",IF(Menú!$E$6="Mediana","Me",IF(Menú!$E$6="Grande","G"," " )))) ->  | D39: 0 | E39: 7.26- -0 | F39: =IFERROR(VLOOKUP(E39,Calificación!$E$2:$F$1020,2,FALSE),0) -> 0 | I39: Aumento ciclo de vida de productos
B40: 7.27 | C40: =IF(Menú!$E$6="Micro","M",IF(Menú!$E$6="Pequeña","P",IF(Menú!$E$6="Mediana","Me",IF(Menú!$E$6="Grande","G"," " )))) ->  | D40: 0 | E40: 7.27- -0 | F40: =IFERROR(VLOOKUP(E40,Calificación!$E$2:$F$1020,2,FALSE),0) -> 0 | I40: Otra | K40: ¿Cuál?
I43: Seleccione la opción
B44: 7.3 | C44: =IF(Menú!$E$6="Micro","M",IF(Menú!$E$6="Pequeña","P",IF(Menú!$E$6="Mediana","Me",IF(Menú!$E$6="Grande","G"," " )))) ->  | D44: =J44 -> 0 | E44: =CONCATENATE(B44,"-",C44,"-",D44) -> 7.3- -0 | F44: =IFERROR(VLOOKUP(E44,Calificación!$E$2:$F$1020,2,FALSE),0) -> 0 | H44: ¿Cuáles acciones de reutilización de residuos realiza en su empresa? Si su respuesta es "otra" especifique ¿Cuál? | I44: Reincorporación de materias primas en sus procesos
B45: 7.31 | C45: =IF(Menú!$E$6="Micro","M",IF(Menú!$E$6="Pequeña","P",IF(Menú!$E$6="Mediana","Me",IF(Menú!$E$6="Grande","G"," " )))) ->  | D45: =J45 -> 0 | E45: =CONCATENATE(B45,"-",C45,"-",D45) -> 7.31- -0 | F45: =IFERROR(VLOOKUP(E45,Calificación!$E$2:$F$1020,2,FALSE),0) -> 0 | H45: Adjunte la información de soporte en el Formato de Evidencia | I45: Uso de residuos en nuevos procesos
B46: 7.32 | C46: =IF(Menú!$E$6="Micro","M",IF(Menú!$E$6="Pequeña","P",IF(Menú!$E$6="Mediana","Me",IF(Menú!$E$6="Grande","G"," " )))) ->  | D46: 0 | E46: 7.32- -0 | F46: =IFERROR(VLOOKUP(E46,Calificación!$E$2:$F$1020,2,FALSE),0) -> 0 | I46: Transformación de residuos en nuevos productos
B47: 7.34 | C47: =IF(Menú!$E$6="Micro","M",IF(Menú!$E$6="Pequeña","P",IF(Menú!$E$6="Mediana","Me",IF(Menú!$E$6="Grande","G"," " )))) ->  | D47: 0 | E47: 7.34- -0 | F47: =IFERROR(VLOOKUP(E47,Calificación!$E$2:$F$1020,2,FALSE),0) -> 0 | I47: Reutilización de activos fijos, materiales y/o insumos
B48: 7.35 | C48: =IF(Menú!$E$6="Micro","M",IF(Menú!$E$6="Pequeña","P",IF(Menú!$E$6="Mediana","Me",IF(Menú!$E$6="Grande","G"," " )))) ->  | D48: =J48 -> 0 | E48: =CONCATENATE(B48,"-",C48,"-",D48) -> 7.35- -0 | F48: =IFERROR(VLOOKUP(E48,Calificación!$E$2:$F$1020,2,FALSE),0) -> 0 | I48: Otra | K48: ¿Cuál?
I51: Seleccione la opción
B52: 7.4 | C52: =IF(Menú!$E$6="Micro","M",IF(Menú!$E$6="Pequeña","P",IF(Menú!$E$6="Mediana","Me",IF(Menú!$E$6="Grande","G"," " )))) ->  | D52: =J52 -> 0 | E52: =CONCATENATE(B52,"-",C52,"-",D52) -> 7.4- -0 | F52: =IFERROR(VLOOKUP(E52,Calificación!$E$2:$F$1020,2,FALSE),0) -> 0 | H52: ¿Cuáles acciones de reciclaje de residuos realiza en su empresa? Si su respuesta es "otra" especifique ¿Cuál? | I52: Implementación de código de colores
B53: 7.41 | C53: =IF(Menú!$E$6="Micro","M",IF(Menú!$E$6="Pequeña","P",IF(Menú!$E$6="Mediana","Me",IF(Menú!$E$6="Grande","G"," " )))) ->  | D53: =J53 -> 0 | E53: =CONCATENATE(B53,"-",C53,"-",D53) -> 7.41- -0 | F53: =IFERROR(VLOOKUP(E53,Calificación!$E$2:$F$1020,2,FALSE),0) -> 0 | H53: Adjunte la información de soporte en el Formato de Evidencia | I53: Separación en la fuente
B54: 7.42 | C54: =IF(Menú!$E$6="Micro","M",IF(Menú!$E$6="Pequeña","P",IF(Menú!$E$6="Mediana","Me",IF(Menú!$E$6="Grande","G"," " )))) ->  | D54: 0 | E54: 7.42- -0 | F54: =IFERROR(VLOOKUP(E54,Calificación!$E$2:$F$1020,2,FALSE),0) -> 0 | I54: Instalación de puntos ecológicos
B55: 7.43 | C55: =IF(Menú!$E$6="Micro","M",IF(Menú!$E$6="Pequeña","P",IF(Menú!$E$6="Mediana","Me",IF(Menú!$E$6="Grande","G"," " )))) ->  | D55: 0 | E55: 7.43- -0 | F55: =IFERROR(VLOOKUP(E55,Calificación!$E$2:$F$1020,2,FALSE),0) -> 0 | I55: Rutas sanitarias
B56: 7.44 | C56: =IF(Menú!$E$6="Micro","M",IF(Menú!$E$6="Pequeña","P",IF(Menú!$E$6="Mediana","Me",IF(Menú!$E$6="Grande","G"," " )))) ->  | D56: 0 | E56: 7.44- -0 | F56: =IFERROR(VLOOKUP(E56,Calificación!$E$2:$F$1020,2,FALSE),0) -> 0 | I56: Entrega a gestores externos
B57: 7.45 | C57: =IF(Menú!$E$6="Micro","M",IF(Menú!$E$6="Pequeña","P",IF(Menú!$E$6="Mediana","Me",IF(Menú!$E$6="Grande","G"," " )))) ->  | D57: 0 | E57: 7.45- -0 | F57: =IFERROR(VLOOKUP(E57,Calificación!$E$2:$F$1020,2,FALSE),0) -> 0 | I57: Otra | K57: ¿Cuál?
I61: Seleccione la opción
B62: 7.7 | C62: =IF(Menú!$E$6="Micro","M",IF(Menú!$E$6="Pequeña","P",IF(Menú!$E$6="Mediana","Me",IF(Menú!$E$6="Grande","G"," " )))) ->  | D62: =I62 -> 0 | E62: =CONCATENATE(B62,"-",C62,"-",D62) -> 7.7- -0 | F62: =IFERROR(VLOOKUP(E62,Calificación!$E$2:$F$1020,2,FALSE),0) -> 0 | G62: ¿Actualmente su organización tiene un proceso de control de emisiones?
G63: Adjunte la información de soporte en el Formato de Evidencia
B65: ESTE DOCUMENTO Y LOS CONTENIDOS EN ÉL INCLUIDOS SE ENCUENTRAN PROTEGIDOS POR LAS NORMAS DE PROPIEDAD INTELECTUAL. LA PONTIFICIA UNIVERSIDAD JAVERIANA SE RESERVA EL DERECHO DE AUTORIZAR O PROHIBIR CUALQUIER USO O EXPLOTACIÓN DISTINTO PARA EL QUE FUERON CREADOS. LO ANTERIOR, SO PENA DE LAS SANCIONES Y ACCIONES ESTABLECIDAS EN LA LEY."

Sheet 4. RSE
G2: Menú | H2: Volver criterio anterior
F4: Criterio Sostenible | G4: RESPONSABILIDAD SOCIAL EMPRESARIAL
B6: No. | F6: Total | G6: POLÍTICAS DE RESPONSABILIDAD SOCIAL Y AMBIENTAL
F8: =F10+F83 -> 0
F9: =F13+F14+F15+F16+F20+F21+F22+F23+F27+F28+F29+F30+F31+F35+F36+F37+F38+F39+F43+F47+F57+F52+F62+F63+F64+F65+F66+F71+F72+F73+F77+F78+F79 -> 0
B10: **Seleccione su respuesta de la lista desplegable que se encuentra en los recuadros de color azul
H12: Seleccione la opción
B13: 8.1 | C13: =IF(Menú!$E$6="Micro","M",IF(Menú!$E$6="Pequeña","P",IF(Menú!$E$6="Mediana","Me",IF(Menú!$E$6="Grande","G"," " )))) ->  | D13: =I13 -> 0 | E13: =CONCATENATE(B13,"-",C13,"-",D13) -> 8.1- -0 | F13: =IFERROR(VLOOKUP(E13,Calificación!$E$2:$F$1078,2,FALSE),0) -> 0 | G13: Su organización cuenta con estrategias y/o programa de preservación de flora | H13: Bonos de carbono,
B14: 8.11 | C14: =IF(Menú!$E$6="Micro","M",IF(Menú!$E$6="Pequeña","P",IF(Menú!$E$6="Mediana","Me",IF(Menú!$E$6="Grande","G"," " )))) ->  | D14: =I14 -> 0 | E14: =CONCATENATE(B14,"-",C14,"-",D14) -> 8.11- -0 | F14: =IFERROR(VLOOKUP(E14,Calificación!$E$2:$F$1078,2,FALSE),0) -> 0 | G14: Adjunte la información de soporte en el Formato de Evidencia | H14: Bonos verdes
B15: 8.12 | C15: =IF(Menú!$E$6="Micro","M",IF(Menú!$E$6="Pequeña","P",IF(Menú!$E$6="Mediana","Me",IF(Menú!$E$6="Grande","G"," " )))) ->  | D15: 0 | E15: 8.12- -0 | F15: =IFERROR(VLOOKUP(E15,Calificación!$E$2:$F$1078,2,FALSE),0) -> 0 | H15: inversiones en protección de especies amenazadas
B16: 8.13 | C16: =IF(Menú!$E$6="Micro","M",IF(Menú!$E$6="Pequeña","P",IF(Menú!$E$6="Mediana","Me",IF(Menú!$E$6="Grande","G"," " )))) ->  | D16: 0 | E16: 8.13- -0 | F16: =IFERROR(VLOOKUP(E16,Calificación!$E$2:$F$1078,2,FALSE),0) -> 0 | H16: Otra | J16: ¿Cuál?
H19: Seleccione la opción
B20: 8.2 | C20: =IF(Menú!$E$6="Micro","M",IF(Menú!$E$6="Pequeña","P",IF(Menú!$E$6="Mediana","Me",IF(Menú!$E$6="Grande","G"," " )))) ->  | D20: =I20 -> 0 | E20: =CONCATENATE(B20,"-",C20,"-",D20) -> 8.2- -0 | F20: =IFERROR(VLOOKUP(E20,Calificación!$E$2:$F$10201,2,FALSE),0) -> 0 | G20: Su organización cuenta con estrategias y/o programa de preservación de fauna silvestre (u otra) | H20: inversiones en protección de especies amenazadas
B21: 8.21 | C21: =IF(Menú!$E$6="Micro","M",IF(Menú!$E$6="Pequeña","P",IF(Menú!$E$6="Mediana","Me",IF(Menú!$E$6="Grande","G"," " )))) ->  | D21: =I21 -> 0 | E21: =CONCATENATE(B21,"-",C21,"-",D21) -> 8.21- -0 | F21: =IFERROR(VLOOKUP(E21,Calificación!$E$2:$F$10201,2,FALSE),0) -> 0 | G21: Adjunte la información de soporte en el Formato de Evidencia | H21: compensaciones por pérdida de biodiversidad
B22: 8.22 | C22: =IF(Menú!$E$6="Micro","M",IF(Menú!$E$6="Pequeña","P",IF(Menú!$E$6="Mediana","Me",IF(Menú!$E$6="Grande","G"," " )))) ->  | D22: =I22 -> 0 | E22: 8.22- -0 | F22: =IFERROR(VLOOKUP(E22,Calificación!$E$2:$F$10201,2,FALSE),0) -> 0 | H22: Inversiones en conservación de biodiversidad
B23: 8.23 | C23: =IF(Menú!$E$6="Micro","M",IF(Menú!$E$6="Pequeña","P",IF(Menú!$E$6="Mediana","Me",IF(Menú!$E$6="Grande","G"," " )))) ->  | D23: =I23 -> 0 | E23: 8.23- -0 | F23: =IFERROR(VLOOKUP(E23,Calificación!$E$2:$F$10201,2,FALSE),0) -> 0 | H23: Otra | J23: ¿Cuál?
H26: Seleccione la opción
B27: 8.3 | C27: =IF(Menú!$E$6="Micro","M",IF(Menú!$E$6="Pequeña","P",IF(Menú!$E$6="Mediana","Me",IF(Menú!$E$6="Grande","G"," " )))) ->  | D27: =I27 -> 0 | E27: =CONCATENATE(B27,"-",C27,"-",D27) -> 8.3- -0 | F27: =IFERROR(VLOOKUP(E27,Calificación!$E$2:$F$1078,2,FALSE),0) -> 0 | G27: Su organización cuenta con espacios de esparcimiento para sus empleados que fomenten su vida familiar, personal y laboral | H27: Dia libre por cumpleaños
B28: 8.31 | C28: =IF(Menú!$E$6="Micro","M",IF(Menú!$E$6="Pequeña","P",IF(Menú!$E$6="Mediana","Me",IF(Menú!$E$6="Grande","G"," " )))) ->  | D28: =I28 -> 0 | E28: =CONCATENATE(B28,"-",C28,"-",D28) -> 8.31- -0 | F28: =IFERROR(VLOOKUP(E28,Calificación!$E$2:$F$1078,2,FALSE),0) -> 0 | G28: Adjunte la información de soporte en el Formato de Evidencia, Favor no relacionar los entregado por ley. | H28: Dia de Familia
B29: 8.32 | C29: =IF(Menú!$E$6="Micro","M",IF(Menú!$E$6="Pequeña","P",IF(Menú!$E$6="Mediana","Me",IF(Menú!$E$6="Grande","G"," " )))) ->  | D29: 0 | E29: 8.32- -0 | F29: =IFERROR(VLOOKUP(E29,Calificación!$E$2:$F$1078,2,FALSE),0) -> 0 | H29: Convivencias
B30: 8.33 | C30: =IF(Menú!$E$6="Micro","M",IF(Menú!$E$6="Pequeña","P",IF(Menú!$E$6="Mediana","Me",IF(Menú!$E$6="Grande","G"," " )))) ->  | D30: 0 | E30: 8.33- -0 | F30: =IFERROR(VLOOKUP(E30,Calificación!$E$2:$F$1078,2,FALSE),0) -> 0 | H30: Eventos Especiales
B31: 8.34 | C31: =IF(Menú!$E$6="Micro","M",IF(Menú!$E$6="Pequeña","P",IF(Menú!$E$6="Mediana","Me",IF(Menú!$E$6="Grande","G"," " )))) ->  | D31: 0 | E31: 8.34- -0 | F31: =IFERROR(VLOOKUP(E31,Calificación!$E$2:$F$1078,2,FALSE),0) -> 0 | H31: Otra | J31: ¿Cuál?
H34: Seleccione la opción
B35: 8.4 | C35: =IF(Menú!$E$6="Micro","M",IF(Menú!$E$6="Pequeña","P",IF(Menú!$E$6="Mediana","Me",IF(Menú!$E$6="Grande","G"," " )))) ->  | D35: =I35 -> 0 | E35: =CONCATENATE(B35,"-",C35,"-",D35) -> 8.4- -0 | F35: =IFERROR(VLOOKUP(E35,Calificación!$E$2:$F$1078,2,FALSE),0) -> 0 | G35: ¿Cuenta con estrategias en su empresa para apoyar a los empleados en su crecimiento personal y profesional? | H35: Apoyo economico para estudios
B36: 8.41 | C36: =IF(Menú!$E$6="Micro","M",IF(Menú!$E$6="Pequeña","P",IF(Menú!$E$6="Mediana","Me",IF(Menú!$E$6="Grande","G"," " )))) ->  | D36: =I36 -> 0 | E36: =CONCATENATE(B36,"-",C36,"-",D36) -> 8.41- -0 | F36: =IFERROR(VLOOKUP(E36,Calificación!$E$2:$F$1078,2,FALSE),0) -> 0 | G36: Adjunte la información de soporte en el Formato de Evidencia | H36: Plan Carrera
B37: 8.42 | C37: =IF(Menú!$E$6="Micro","M",IF(Menú!$E$6="Pequeña","P",IF(Menú!$E$6="Mediana","Me",IF(Menú!$E$6="Grande","G"," " )))) ->  | D37: 0 | E37: 8.42- -0 | F37: =IFERROR(VLOOKUP(E37,Calificación!$E$2:$F$1078,2,FALSE),0) -> 0 | H37: Flexibilidad horaria
B38: 8.43 | C38: =IF(Menú!$E$6="Micro","M",IF(Menú!$E$6="Pequeña","P",IF(Menú!$E$6="Mediana","Me",IF(Menú!$E$6="Grande","G"," " )))) ->  | D38: 0 | E38: 8.43- -0 | F38: =IFERROR(VLOOKUP(E38,Calificación!$E$2:$F$1078,2,FALSE),0) -> 0 | H38: Becas Universitarias
B39: 8.44 | C39: =IF(Menú!$E$6="Micro","M",IF(Menú!$E$6="Pequeña","P",IF(Menú!$E$6="Mediana","Me",IF(Menú!$E$6="Grande","G"," " )))) ->  | D39: 0 | E39: 8.44- -0 | F39: =IFERROR(VLOOKUP(E39,Calificación!$E$2:$F$1078,2,FALSE),0) -> 0 | H39: Otra | J39: ¿Cuál?
H42: Seleccione la opción
B43: 8.5 | C43: =IF(Menú!$E$6="Micro","M",IF(Menú!$E$6="Pequeña","P",IF(Menú!$E$6="Mediana","Me",IF(Menú!$E$6="Grande","G"," " )))) ->  | D43: =H43 -> 0 | E43: =CONCATENATE(B43,"-",C43,"-",D43) -> 8.5- -0 | F43: =IFERROR(VLOOKUP(E43,Calificación!$E$2:$F$1078,2,FALSE),0) -> 0 | G43: Su organización cuenta con una política de responsabilidad social empresarial y/o con una línea de proyección social
G44: Adjunte la información de soporte en el Formato de Evidencia
H46: Seleccione la opción
B47: 8.6 | C47: =IF(Menú!$E$6="Micro","M",IF(Menú!$E$6="Pequeña","P",IF(Menú!$E$6="Mediana","Me",IF(Menú!$E$6="Grande","G"," " )))) ->  | D47: =H47 -> 0 | E47: =CONCATENATE(B47,"-",C47,"-",D47) -> 8.6- -0 | F47: =IFERROR(VLOOKUP(E47,Calificación!$E$2:$F$1078,2,FALSE),0) -> 0 | G47: ¿Cuenta con lineamientos y/o políticas en su empresa que favorecen la vinculación laboral de población vulnerable y/o de especial protección constitucional? Es posible incluir además las acciones que atienden la perspectiva de género y todas aquellas que promueven la justicia, la equidad y/o convivencia pacifica
G48: Adjunte la información de soporte en el Formato de Evidencia
H51: Seleccione la opción
B52: 8.7 | C52: =IF(Menú!$E$6="Micro","M",IF(Menú!$E$6="Pequeña","P",IF(Menú!$E$6="Mediana","Me",IF(Menú!$E$6="Grande","G"," " )))) ->  | D52: =H52 -> 0 | E52: =CONCATENATE(B52,"-",C52,"-",D52) -> 8.7- -0 | F52: =IFERROR(VLOOKUP(E52,Calificación!$E$2:$F$1078,2,FALSE),0) -> 0 | G52: ¿Su organización cuenta con lineamientos y/o políticas de inclusión laboral de personas con movilidad reducida y/o personas con otro tipo de discapacidades?
G53: Adjunte la información de soporte en el Formato de Evidencia
H56: Seleccione la opción
B57: 8.8 | C57: =IF(Menú!$E$6="Micro","M",IF(Menú!$E$6="Pequeña","P",IF(Menú!$E$6="Mediana","Me",IF(Menú!$E$6="Grande","G"," " )))) ->  | D57: =H57 -> 0 | E57: =CONCATENATE(B57,"-",C57,"-",D57) -> 8.8- -0 | F57: =IFERROR(VLOOKUP(E57,Calificación!$E$2:$F$1078,2,FALSE),0) -> 0 | G57: ¿Su organización apoya, económicamente o mediante voluntariado, causas sociales y/o fundaciones donde se involucre a los empleados?
G58: Adjunte la información de soporte en el Formato de Evidencia
H61: Seleccione la opción
B62: 8.9 | C62: =IF(Menú!$E$6="Micro","M",IF(Menú!$E$6="Pequeña","P",IF(Menú!$E$6="Mediana","Me",IF(Menú!$E$6="Grande","G"," " )))) ->  | D62: =I62 -> 0 | E62: =CONCATENATE(B62,"-",C62,"-",D62) -> 8.9- -0 | F62: =IFERROR(VLOOKUP(E62,Calificación!$E$2:$F$1078,2,FALSE),0) -> 0 | G62: Su organización cuenta con lineamientos y/o políticas de beneficios adicionales para sus empleados | H62: Prima Extralegal
B63: 8.91 | C63: =IF(Menú!$E$6="Micro","M",IF(Menú!$E$6="Pequeña","P",IF(Menú!$E$6="Mediana","Me",IF(Menú!$E$6="Grande","G"," " )))) ->  | D63: =I63 -> 0 | E63: =CONCATENATE(B63,"-",C63,"-",D63) -> 8.91- -0 | F63: =IFERROR(VLOOKUP(E63,Calificación!$E$2:$F$1078,2,FALSE),0) -> 0 | G63: Adjunte la información de soporte en el Formato de Evidencia | H63: Bonificaciónes
B64: 8.92 | C64: =IF(Menú!$E$6="Micro","M",IF(Menú!$E$6="Pequeña","P",IF(Menú!$E$6="Mediana","Me",IF(Menú!$E$6="Grande","G"," " )))) ->  | D64: 0 | E64: 8.92- -0 | F64: =IFERROR(VLOOKUP(E64,Calificación!$E$2:$F$1078,2,FALSE),0) -> 0 | H64: Bonos de alimentación
B65: 8.93 | C65: =IF(Menú!$E$6="Micro","M",IF(Menú!$E$6="Pequeña","P",IF(Menú!$E$6="Mediana","Me",IF(Menú!$E$6="Grande","G"," " )))) ->  | D65: 0 | E65: 8.93- -0 | F65: =IFERROR(VLOOKUP(E65,Calificación!$E$2:$F$1078,2,FALSE),0) -> 0 | H65: Bonos de Gasolina
B66: 8.94 | C66: =IF(Menú!$E$6="Micro","M",IF(Menú!$E$6="Pequeña","P",IF(Menú!$E$6="Mediana","Me",IF(Menú!$E$6="Grande","G"," " )))) ->  | D66: 0 | E66: 8.94- -0 | F66: =IFERROR(VLOOKUP(E66,Calificación!$E$2:$F$1078,2,FALSE),0) -> 0 | H66: Otro | J66: ¿Cuál?
H70: Seleccione la opción
B71: 8.10 | C71: =IF(Menú!$E$6="Micro","M",IF(Menú!$E$6="Pequeña","P",IF(Menú!$E$6="Mediana","Me",IF(Menú!$E$6="Grande","G"," " )))) ->  | D71: =I71 -> 0 | E71: =CONCATENATE(B71,"-",C71,"-",D71) -> 8.10- -0 | F71: =IFERROR(VLOOKUP(E71,Calificación!$E$2:$F$1078,2,FALSE),0) -> 0 | G71: ¿Cuenta con iniciativas en materia de comunicación organizacional para informar, sensibilizar o influir en los comportamientos favorables en torno a la protección socio ambiental en el ámbito laboral de su empresa? | H71: Correo eletronicos
B72: 8101 | C72: =IF(Menú!$E$6="Micro","M",IF(Menú!$E$6="Pequeña","P",IF(Menú!$E$6="Mediana","Me",IF(Menú!$E$6="Grande","G"," " )))) ->  | D72: =I72 -> 0 | E72: =CONCATENATE(B72,"-",C72,"-",D72) -> 8101- -0 | F72: =IFERROR(VLOOKUP(E72,Calificación!$E$2:$F$1078,2,FALSE),0) -> 0 | G72: Adjunte la información de soporte en el Formato de Evidencia | H72: Capacitaciones
B73: 8102 | C73: =IF(Menú!$E$6="Micro","M",IF(Menú!$E$6="Pequeña","P",IF(Menú!$E$6="Mediana","Me",IF(Menú!$E$6="Grande","G"," " )))) ->  | D73: 0 | E73: 8102- -0 | F73: =IFERROR(VLOOKUP(E73,Calificación!$E$2:$F$1078,2,FALSE),0) -> 0 | H73: Otro | J73: ¿Cuál?
H76: Seleccione la opción
B77: 8.111 | C77: =IF(Menú!$E$6="Micro","M",IF(Menú!$E$6="Pequeña","P",IF(Menú!$E$6="Mediana","Me",IF(Menú!$E$6="Grande","G"," " )))) ->  | D77: =I77 -> 0 | E77: =CONCATENATE(B77,"-",C77,"-",D77) -> 8.111- -0 | F77: =IFERROR(VLOOKUP(E77,Calificación!$E$2:$F$1078,2,FALSE),0) -> 0 | G77: ¿Cuenta con estrategias de marketing para ganar legitimidad y confianza frente a sus clientes en materia de responsabilidad social? | H77: Pagina Web
B78: 8112 | C78: =IF(Menú!$E$6="Micro","M",IF(Menú!$E$6="Pequeña","P",IF(Menú!$E$6="Mediana","Me",IF(Menú!$E$6="Grande","G"," " )))) ->  | D78: =I78 -> 0 | E78: =CONCATENATE(B78,"-",C78,"-",D78) -> 8112- -0 | F78: =IFERROR(VLOOKUP(E78,Calificación!$E$2:$F$1078,2,FALSE),0) -> 0 | G78: Adjunte la información de soporte en el Formato de Evidencia | H78: Vallas Publicitarias
B79: 8113 | C79: =IF(Menú!$E$6="Micro","M",IF(Menú!$E$6="Pequeña","P",IF(Menú!$E$6="Mediana","Me",IF(Menú!$E$6="Grande","G"," " )))) ->  | D79: 0 | E79: 8113- -0 | F79: =IFERROR(VLOOKUP(E79,Calificación!$E$2:$F$1078,2,FALSE),0) -> 0 | H79: Otro | J79: ¿Cuál?
B83: No. | F83: =F86 -> 0 | G83: SEGURIDAD INDUSTRIAL Y SALUD EN EL TRABAJO
H85: Seleccione la opción
B86: 9.1 | C86: =IF(Menú!$E$6="Micro","M",IF(Menú!$E$6="Pequeña","P",IF(Menú!$E$6="Mediana","Me",IF(Menú!$E$6="Grande","G"," " )))) ->  | D86: =H86 -> 0 | E86: =CONCATENATE(B86,"-",C86,"-",D86) -> 9.1- -0 | F86: =IFERROR(VLOOKUP(E86,Calificación!$E$2:$F$1020,2,FALSE),0) -> 0 | G86: Su organización cuenta con lineamientos y/o políticas de seguridad industrial y salud ocupacional?
G87: Adjunte la información de soporte en el Formato de Evidencia
B88: ESTE DOCUMENTO Y LOS CONTENIDOS EN ÉL INCLUIDOS SE ENCUENTRAN PROTEGIDOS POR LAS NORMAS DE PROPIEDAD INTELECTUAL. LA PONTIFICIA UNIVERSIDAD JAVERIANA SE RESERVA EL DERECHO DE AUTORIZAR O PROHIBIR CUALQUIER USO O EXPLOTACIÓN DISTINTO PARA EL QUE FUERON CREADOS. LO ANTERIOR, SO PENA DE LAS SANCIONES Y ACCIONES ESTABLECIDAS EN LA LEY.

Sheet 5. Huella de Carbono e Hídrica
D3: Menú
C6: CALCULADORA HUELLA DE CARBONO E HÍDRICA
D8: La Pontificia Universidad Javeriana consciente de su aporte a la sociedad ha decido crear la herramienta de Calculadora de Huella de Hídrica y Carbono, la cual pone a disposición de los proveedores para que puedan realizar el cálculo de su Huella Hídrica y de Co2 en sus organizaciones. Con esto se tendrá una única forma de medir a nuestros proveedores y lograr ser Carbón Neutro. * Para este apartado deberá ingresar la información que considere pertinente y se calcule actualmente en su empresa, los datos se deben ingresar en la columna F que se encuentra resaltada de color amarillo, por favor tener en cuenta las unidades de medias. Con esta información obtendrá los resultados de Huella Hídrica y Co2 de su empresa.
D12: ITEM | E12: UNIDAD | F12: CANTIDAD ANUAL | G12: MULTIPLICADOR (*) | K12: RESULTADOS
G14: Azul (m3) | H14: Verde (m3) | I14: Gris (m3) | J14: CO2 (ton) | K14: Azul (m3) | L14: Verde (m3) | M14: Gris (m3) | N14: CO2 (ton)
D15: 1. Energía convencional | E15: kWh | G15: 15.1 | H15: 1.7 | I15: 3 | J15: =0.2/1000 -> 0.0002 | L15: =+F15*H15 -> 0 | M15: =+I15*F15 -> 0 | N15: =+F15*J15 -> 0
D16: 2. Energía alternativas | E16: kWh | G16: 1.5 | H16: 1.5 | I16: 1.5 | J16: =0.04/1000 -> 4e-05 | L16: =+F16*H16 -> 0 | M16: =+I16*F16 -> 0 | N16: 0
D17: 3. Diesel o gasolina soporte energético y movilidad | E17: Galón | G17: 20.8 | H17: 1.2 | I17: 2.5 | J17: =2.7*3.6 -> 9.72 | K17: =+F17*G17 -> 0 | L17: =+F17*H17 -> 0 | M17: =+I17*F17 -> 0 | N17: 0
D18: 4. Gas natural | E18: M3 | G18: =+P18*R18 -> 0 | H18: =+Q18*R18 -> 0 | I18: 250 | J18: 0.003 | L18: =+F18*H18 -> 0 | M18: 0 | N18: 0
D19: 5. Agua consumida | E19: M3 | G19: =+P19*R19 -> 0 | H19: =+Q19*R19 -> 0 | I19: 100 | J19: 0.0002 | K19: =+F19*G19 -> 0 | L19: =+F19*H19 -> 0 | M19: 0 | N19: 0
D20: 5. Agua residual | E20: M3 | G20: 0.9 | H20: 0.1 | I20: 1000 | J20: =(((0.5/1000)*1000*0.6)*25)/1000 -> 0.0075 | K20: =F20*G20 -> 0 | L20: =F20*H20 -> 0 | M20: =F20*I20 -> 0 | N20: =+F20*J20 -> 0
D21: 6. Productos orgánicos utilizados como materias primas para alimentos | E21: Ton | G21: =+P21*R21 -> 0 | H21: 0 | I21: 10 | J21: 10 | K21: =+F21*G21 -> 0 | L21: =+F21*H21 -> 0 | M21: 0 | N21: =+F21*J21 -> 0
D22: 7. Productos orgánicos utilizados como materias primas para otros usos | E22: Ton | G22: 0 | H22: 0 | I22: 2 | J22: 0.2 | L22: 0 | M22: 0 | N22: 0
D23: 8. Metales y aleaciones utilizados con grado de peligrosidad inexistente, ligera o moderada | E23: Ton | G23: 0 | H23: 0 | I23: 5 | J23: 20 | K23: 0 | L23: 0 | M23: 0 | N23: 0
D24: 9. Metales pesados utilizados con grado de peligrosidad alto - Ejemplo litio | E24: Kg | G24: 0 | H24: 0 | I24: 2000 | J24: 15 | K24: 0 | L24: 0 | M24: 0 | N24: 0
D25: 10. Metales pesados utilizados con grado extremadamente peligrosos - Ejemplo mercurio | E25: Kg | G25: 0 | H25: 0 | I25: 1000 | J25: 40 | K25: 0 | L25: 0 | M25: 0 | N25: 0
D26: 11. Productos derivados del petroleo utilizados como materias primas | E26: Ton | G26: 0 | H26: 0 | I26: 250 | J26: 5 | K26: 0 | L26: 0 | M26: 0 | N26: 0
D27: 12. Desechos orgánicos generados por alimentos | E27: Ton | G27: 0 | H27: 0 | I27: 20 | J27: 5 | K27: =F27*G27 -> 0 | L27: =F27*H27 -> 0 | M27: =+I27*F27 -> 0 | N27: =F27*J27 -> 0
D28: 13. Desechos orgánicos generados por otras materias primas (madera, poda, entre otros) | E28: Ton | G28: 0 | H28: 0 | I28: 2 | J28: 0.1 | K28: =+F28*G28 -> 0 | L28: =+F28*H28 -> 0 | M28: =+I28*F28 -> 0 | N28: =+F28*J28 -> 0
D29: 14. Desechos metalicos y aleaciones generados | E29: Ton | G29: 0 | H29: 0 | I29: 10 | J29: 1 | K29: 0 | L29: 0 | M29: 0 | N29: 0
D30: 15. Desechos plásticos generados (PET, PVC, Polietileno de alta densidad, entre otros) | E30: Ton | G30: 0 | H30: 0 | I30: 250 | J30: 10 | K30: 0 | L30: 0 | M30: 0 | N30: 0
D31: TOTALES (valores absolutos anuales) | K31: =SUM(K15:K30) -> 0 | L31: =SUM(L15:L30) -> 0 | M31: =SUM(M15:M30) -> 0 | N31: =SUM(N15:N30) -> 0
C35: 1 | D35: Toneladas de CO2 equivalente generadas en el año inmediatmente anterior | E35: =N31 -> 0 | F35: ton C02/año
D36: Se debe usar la “Calculadora Huella Hídrica y Carbono (PUJ)”
C40: 2 | D40: Huella hídrica gris anual de su empresa | E40: =M31 -> 0 | F40: m3
D41: Se debe usar la “Calculadora Huella Hídrica y Carbono (PUJ)”
C45: 3 | D45: Huella hídrica verde anual de su empresa | E45: =L31 -> 0 | F45: m3
D46: Se debe usar la “Calculadora Huella Hídrica y Carbono (PUJ)”
C50: 4 | D50: Huella hídrica azul anual de su empresa | E50: =K31 -> 0 | F50: m3
D51: Se debe usar la “Calculadora Huella Hídrica y Carbono (PUJ)”
C55: 5 | D55: Huella hídrica total anual de su empresa | E55: =+K31+L31+M31 -> 0 | F55: m3
D56: Se debe usar la “Calculadora Huella Hídrica y Carbono (PUJ)”
C58: ESTE DOCUMENTO Y LOS CONTENIDOS EN ÉL INCLUIDOS SE ENCUENTRAN PROTEGIDOS POR LAS NORMAS DE PROPIEDAD INTELECTUAL. LA PONTIFICIA UNIVERSIDAD JAVERIANA SE RESERVA EL DERECHO DE AUTORIZAR O PROHIBIR CUALQUIER USO O EXPLOTACIÓN DISTINTO PARA EL QUE FUERON CREADOS. LO ANTERIOR, SO PENA DE LAS SANCIONES Y ACCIONES ESTABLECIDAS EN LA LEY.

Sheet 6.Calculadora Huella-homeoffice
B3: CALCULADORA DE HUELLA HÍDRICA Y CARBONO | O3: 2022-07-26
B4: FORMULARIO SOSTENIBILIDAD BIENES Y SERVICIOS | O4: Dias Laborales | P4: 246
B5: DIRECTRIZ DE COMPRAS RESPONSABLES Y SOSTENBILES | O5: X
B6: La Pontificia Universidad Javeriana consciente de su aporte a la sociedad ha decidido crear la herramienta de Calculadora de Huella de Hídrica y Carbono, la cual pone a disposición de los proveedores para que puedan realizar el cálculo de su Huella Hídrica y de Co2 en sus organizaciones. Con esto se tendrá una única forma de medir a nuestros proveedores y lograr ser Carbón Neutro. Nota: Para la sección de Energía Convencionaldebe seleccionar los recursos que como empleador entrega a sus colaboradores, eligiendo de las listas desplegables de la columna J los ítems 1 y/o 2 según sea el caso. Con esta información obtendrá los resultados de Huella Hídrica y Co2 de su empresa. Los campos en amarillos son obligatorios.
B7: Proveedor Razón Social | H7: Nit: | J7: Fecha Diligenciamiento
H8: N° de empleados
B9: RECURSOS CONSUMIDOS
B10: Energía convencional
B11: Item | C11: Descripción | E11: Unidad de medida | F11: Consumo/h | G11: Consumo diario Laboral | H11: Total KW | I11: Consumo anual/ kw Hora | J11: Uso | K11: Condicional | L11: Utilizados | M11: Total Energia Convencional | N11: Multiplicadores | R11: Resultados
N12: Azul (m3) | O12: Verde (m3) | P12: Gris (m3) | Q12: CO2 (ton) | R12: Azul (m3) | S12: Verde (m3) | T12: Gris (m3) | U12: CO2 (ton)
B13: 1 | C13: Computador de escritorio | E13: w | F13: 69 | G13: 8 | H13: =F13*G13 -> 552 | I13: =H13*$P$4/1000 -> 135.792 | K13: =IF(J13="X","1",IF(J13="","0 "," " )) -> 0 | L13: =(K13*I13) -> 0 | M13: =SUM(L13:L17) -> 0 | N13: 15.1 | O13: 1.7 | P13: 3 | Q13: =0.2/1000 -> 0.0002 | R13: =N13*$M$13 -> 0 | S13: =O13*$M$13 -> 0 | T13: =P13*$M$13 -> 0 | U13: =Q13*$M$13 -> 0
B14: 2 | C14: Computador Portatil | E14: w | F14: 34 | G14: 8 | H14: =F14*G14 -> 272 | I14: 66.912 | K14: =IF(J14="X","1",IF(J14="","0 "," " )) -> 0 | L14: =(K14*I14) -> 0
B15: 3 | C15: Bombilla bajo consumo | E15: w | F15: 13 | G15: 8 | H15: 104 | I15: 25.584 | K15: 0 | L15: 0
B16: 4 | C16: Modem de internet | E16: w | F16: 20 | G16: 8 | H16: 160 | I16: 39.36 | K16: 0 | L16: 0
B17: 5 | C17: Celular con cargador | E17: w | F17: 15 | G17: 1 | H17: =F17*G17 -> 15 | I17: =H17*$P$4/1000 -> 3.69 | K17: 0 | L17: 0
B18: Agua consumida | R18: Resultados
B19: Item | C19: Descripción | E19: Unidad de medida | F19: Consumo diario Laboral | H19: Consumo anual/ Lt | J19: Uso | K19: Condicional | L19: Utilizados | M19: Total agua Consumida | N19: Azul (m3) | O19: Verde (m3) | P19: Gris (m3) | Q19: CO2 (ton) | R19: Azul (m3) | S19: Verde (m3) | T19: Gris (m3) | U19: CO2 (ton)
B20: 1 | C20: Grifos y Sanitarios | E20: Lt | F20: 30 | H20: =F20*P4/1000 -> 7.38 | K20: =IF(J20="X","1",IF(J20="","0 "," " )) -> 0 | L20: =(K20*H20) -> 0 | M20: =L20 -> 0 | N20: 0.9 | O20: 0.1 | P20: 100 | Q20: 0.0002 | R20: =N20*$M$20 -> 0 | S20: =O20*$M$20 -> 0 | T20: =P20*$M$20 -> 0 | U20: =Q20*$M$20 -> 0
B21: Residuos | R21: Resultados
B22: Item | C22: Descripción | E22: Unidad de medida | F22: Consumo diario Laboral | H22: Consumo anual/ toneladas | J22: Uso | K22: Condicional | L22: Utilizados | M22: Total Residuos | N22: Azul (m3) | O22: Verde (m3) | P22: Gris (m3) | Q22: CO2 (ton) | R22: Azul (m3) | S22: Verde (m3) | T22: Gris (m3) | U22: CO2 (ton)
B23: 1 | C23: Cantidad de residuos | E23: Gr | F23: 500 | H23: =F23*P4/1000000 -> 0.123 | K23: =IF(J23="X","1",IF(J23="","0 "," " )) -> 0 | L23: =(K23*H23) -> 0 | M23: =L23 -> 0 | N23: 1.35 | O23: 0.15 | P23: 135 | Q23: 7.5 | R23: =N23*$M$23 -> 0 | S23: =O23*$M$23 -> 0 | T23: =P23*$M$23 -> 0 | U23: =Q23*$M$23 -> 0
B24: TOTALES (valores absolutos anuales) | R24: =SUM(R13+R20+R23)*(P8) -> 0 | S24: =SUM(S13+S20+S23)*$P$8 -> 0 | T24: =SUM(T13+T20+T23)*$P$8 -> 0 | U24: =SUM(U13+U20+U23)*$P$8 -> 0

Sheet Formato de Evidencia
O4: FORMATO DE EVIDENCIA
O5: FORMULARIO SOSTENIBILIDAD PROVEEDORES
K6: DIRECTRIZ DE COMPRAS RESPONSABLES Y SOSTENIBLES
C9: RAZÓN SOCIAL PROVEEDOR
C10: NIT
C11: CONTACTO
C12: CARGO
C13: TELÉFONO | E13: CELULAR | J13: CELULAR
C14: CORREO
C15: FECHA DILIGENCIAMIENTO
C17: EFICIENCIA ENERGÉTICA
C19: Pregunta Formulario | G19: 1.2 ¿Cuáles de las siguientes energías renovables utiliza? JUSTIFICACIÓN DE RESPUESTA (Descripción, fotos, links u otros)
C42: Pregunta Formulario | G42: 1.3 Respecto a su consumo total de energía ¿Qué porcentaje proviene de energías renovables? JUSTIFICACIÓN DE RESPUESTA (Descripción, fotos, links u otros)
C56: Pregunta Formulario | G56: 1.5 ¿Cuáles de las siguientes acciones realiza en su empresa? Si su respuesta es "otra" especifique ¿Cuál? JUSTIFICACIÓN DE RESPUESTA (Descripción, fotos, links u otros)
C67: CAMBIO CLIMÁTICO
C70: Pregunta Formulario | G70: 2.2 ¿Cuáles de las siguientes acciones de reducción de huella de carbono realiza en su empresa? Si su respuesta es "otra" especifique ¿Cuál? JUSTIFICACIÓN DE RESPUESTA (Descripción, fotos, links u otros)
C86: Pregunta Formulario | G86: 2.3 ¿Cuáles de las siguientes acciones de compensación de huella de carbono realiza en su empresa? Si su respuesta es "ninguna de las anteriores" diríjase a la pregunta 3.1 JUSTIFICACIÓN DE RESPUESTA (Descripción, fotos, links u otros)
C98: CONSUMO DE AGUA
C101: Pregunta Formulario | G101: 3.2 ¿Cuáles de las siguientes acciones realiza en su empresa? Si su respuesta es "otra" especifique ¿Cuál? JUSTIFICACIÓN DE RESPUESTA (Descripción, fotos, links u otros)
C114: EXTRACCIÓN Y PROCEDENCIA DE LOS RECURSOS
C116: Pregunta Formulario | G116: 4.1 ¿Su empresa ha realizado acciones de reemplazo de materia primas derivadas del petróleo? JUSTIFICACIÓN DE RESPUESTA (Descripción, fotos, links u otros)
C134: Pregunta Formulario | G134: 4.2 ¿Cuáles de las siguientes acciones de reemplazo de materias primas realiza en su empresa? Si su respuesta es "otra" especifique ¿Cuál? JUSTIFICACIÓN DE RESPUESTA (Descripción, fotos, links u otros)
C154: Pregunta Formulario | G154: 4.3 Evita el uso y/o sus productos son libres de: JUSTIFICACIÓN DE RESPUESTA (Descripción, fotos, links u otros)
C168: INNOVACIONES EN EL PRODUCTO Y/O PROCESOS
C170: Pregunta Formulario | G170: 5.2 ¿Qué tipo de innovaciones tiene implementadas actualmente? JUSTIFICACIÓN DE RESPUESTA (Descripción, fotos, links u otros)
C186: REINCORPORACIÓN AL CICLO PRODUCTIVO
C188: Pregunta Formulario | G188: 6.2 ¿Qué porcentaje de materiales previamente utilizados en la elaboración de otros productos y/o proceso, incorpora en su ciclo productivo? JUSTIFICACIÓN DE RESPUESTA (Descripción, fotos, links u otros)
C202: Pregunta Formulario | G202: 6.3 ¿Su empresa incorpora aguas residuales tratadas provenientes de sus actividades en sus procesos productivos? JUSTIFICACIÓN DE RESPUESTA (Descripción, fotos, links u otros)
C217: GESTIÓN DE LOS RESIDUOS PROPIOS (SÓLIDOS, LÍQUIDOS, GASEOSOS)
C220: Pregunta Formulario | G220: 7.2 ¿Cuáles acciones de reducción de residuos realiza en su empresa? Si su respuesta es "otra" especifique ¿Cuál? JUSTIFICACIÓN DE RESPUESTA (Descripción, fotos, links u otros)
C234: Pregunta Formulario | G234: 7.3 ¿Cuáles acciones de reutilización de residuos realiza en su empresa? Si su respuesta es "otra" especifique ¿Cuál? JUSTIFICACIÓN DE RESPUESTA (Descripción, fotos, links u otros)
C247: Pregunta Formulario | G247: 7.4 ¿Cuáles acciones de reciclaje de residuos realiza en su empresa? Si su respuesta es "otra" especifique ¿Cuál? JUSTIFICACIÓN DE RESPUESTA (Descripción, fotos, links u otros)
C261: Pregunta Formulario | G261: 7.6 ¿Cuáles acciones de manejo de residuos líquidos contaminados con sustancias de interés ambiental y sanitario realiza en su empresa? JUSTIFICACIÓN DE RESPUESTA (Descripción, fotos, links u otros)
C276: Pregunta Formulario | G276: 7.7 ¿Actualmente su organización tiene un proceso de control de emisiones? JUSTIFICACIÓN DE RESPUESTA (Descripción, fotos, links u otros)
C290: POLÍTICAS DE RESPONSABILIDAD SOCIAL Y AMBIENTAL
C292: Pregunta Formulario | G292: 8.1 Su organización cuenta con estrategias y/o programa de preservación de flora JUSTIFICACIÓN DE RESPUESTA (Descripción, fotos, links u otros)
C305: Pregunta Formulario | G305: 8.2 Su organización cuenta con estrategias y/o programa de preservación de fauna silvestre (u otra) JUSTIFICACIÓN DE RESPUESTA (Descripción, fotos, links u otros)
C319: Pregunta Formulario | G319: 8.3 Su organización cuenta con espacios de esparcimiento para sus empleados que fomenten su vida familiar, personal y laboral JUSTIFICACIÓN DE RESPUESTA (Descripción, fotos, links u otros)
C336: Pregunta Formulario | G336: 8.4 ¿Cuenta con estrategias en su empresa para apoyar a los empleados en su crecimiento personal y profesional? JUSTIFICACIÓN DE RESPUESTA (Descripción, fotos, links u otros)
C347: Pregunta Formulario | G347: 8.5 ¿Su organización cuenta con una política de responsabilidad social empresarial y/o con una línea de proyección social JUSTIFICACIÓN DE RESPUESTA (Descripción, fotos, links u otros)
C360: Pregunta Formulario | G360: 8.6 ¿Cuenta con lineamientos y/o políticas en su empresa que favorecen la vinculación laboral de población vulnerable y/o de especial protección constitucional? Es posible incluir además las acciones que atienden la perspectiva de género y todas aquellas que promueven la justicia, la equidad y/o convivencia pacifica JUSTIFICACIÓN DE RESPUESTA (Descripción, fotos, links u otros)
C374: Pregunta Formulario | G374: 8.7 ¿Su organización cuenta con lineamientos y/o políticas de inclusión laboral de personas con movilidad reducida y/o personas con otro tipo de discapacidades? JUSTIFICACIÓN DE RESPUESTA (Descripción, fotos, links u otros)
C388: Pregunta Formulario | G388: 8.8 ¿Su organización apoya, económicamente o mediante voluntariado, causas sociales y/o fundaciones donde se involucre a los empleados? JUSTIFICACIÓN DE RESPUESTA (Descripción, fotos, links u otros)
C401: Pregunta Formulario | G401: 8.9 Su organización cuenta con lineamientos y/o políticas de beneficios adicionales para sus empleados JUSTIFICACIÓN DE RESPUESTA (Descripción, fotos, links u otros)
C417: Pregunta Formulario | G417: 8.10 ¿Cuenta con iniciativas en materia de comunicación organizacional para informar, sensibilizar o influir en los comportamientos favorables en torno a la protección socio ambiental en el ámbito laboral de su empresa? JUSTIFICACIÓN DE RESPUESTA (Descripción, fotos, links u otros)
C430: Pregunta Formulario | G430: 8.11 ¿Cuenta con estrategias de marketing para ganar legitimidad y confianza frente a sus clientes en materia de responsabilidad social? JUSTIFICACIÓN DE RESPUESTA (Descripción, fotos, links u otros)
C447: SEGURIDAD INDUSTRIAL Y SALUD EN EL TRABAJO
C450: Pregunta Formulario | G450: 9.1 Su organización cuenta con lineamientos y/o políticas de seguridad industrial y salud ocupacional? JUSTIFICACIÓN DE RESPUESTA (Descripción, fotos, links u otros)

Sheet Clasificación
B2: Menú
B4: Ministerio de Comercio, Industria y Turismo expidió Decreto 957 de 2019, a través del cual se implementará una nueva clasificación del tamaño de las empresas con base en los ingresos por actividades ordinarias anuales, generando un cambio en la clasificación anterior que se establecía en sus activos o número de empleados.

Sheet Preguntas (hidden)
F2: Menu
B4: CONSUMO DE ENERGIA, AGUA Y CAMBIO CLIMATICO | I4: Puntuación
B6: No. | C6: Micro | D6: Pequeña | E6: Mediana | F6: Grande | G6: Criterio | H6: Respuesta | I6: Micro | J6: Pequeña | K6: Mediana | L6: Grande | M6: Evidencia
B7: 1 | C7: =+C8+C10+C16+C21+C23 -> 185 | D7: =+D8+D10+D16+D21+D23 -> 330 | E7: =+E8+E10+E16+E21+E23 -> 475 | F7: =+F8+F10+F16+F21+F23 -> 620 | G7: EFICIENCIA ENERGÉTICA
B8: 1.1 | C8: =I8 -> 25 | D8: 50 | E8: 75 | F8: 100 | G8: ¿Utiliza energías renovables NO convencionales? | H8: SI | I8: 25 | J8: 50 | K8: 75 | L8: 100 | M8: NO
H9: NO | I9: 0 | J9: 0 | K9: 0 | L9: 0
B10: 1.2 | C10: 30 | D10: 60 | E10: 90 | F10: 120 | G10: ¿Cuáles de las siguientes energías renovables NO convencionales utiliza? | H10: Fotovoltaica | I10: 5 | J10: 10 | K10: 15 | L10: 20 | M10: x
H11: Eolica | I11: 5 | J11: 10 | K11: 15 | L11: 20
H12: Cinetica | I12: 5 | J12: 10 | K12: 15 | L12: 20
H13: Mareomotriz | I13: 5 | J13: 10 | K13: 15 | L13: 20
H14: Biomasa | I14: 5 | J14: 10 | K14: 15 | L14: 20
H15: Hidraulica | I15: 5 | J15: 10 | K15: 15 | L15: 20
B16: 1.3 | C16: =I20 -> 25 | D16: =J20 -> 50 | E16: =K20 -> 75 | F16: 100 | G16: Respecto a su consumo total de energía ¿Qué porcentaje proviene de energías renovables NO convencionales? | H16: < 1% | I16: 0 | J16: 0 | K16: 0 | L16: 0 | M16: NO
H17: 1 - 25% | I17: 10 | J17: 15 | K17: 20 | L17: 25
H18: 25 - 50% | I18: 15 | J18: 20 | K18: 30 | L18: 50
H19: 50 - 75% | I19: 20 | J19: 35 | K19: 55 | L19: 75
H20: > 75% | I20: 25 | J20: 50 | K20: 75 | L20: 100
B21: 1.4 | C21: =I21 -> 25 | D21: =J21 -> 50 | E21: =K21 -> 75 | F21: 100 | G21: ¿Su empresa cuenta con políticas o lineamientos de eficiencia energética? | H21: SI | I21: 25 | J21: 50 | K21: 75 | L21: 100 | M21: SI
H22: NO | I22: 0 | J22: 0 | K22: 0 | L22: 0
B23: 1.5 | C23: 80 | D23: 120 | E23: 160 | F23: 200 | G23: Señale cuales de los siguientes lineamientos tiene implementados: ** | H23: Iluminación eficiente (T5 y Led) | I23: 10 | J23: 15 | K23: 20 | L23: 25 | M23: x
H24: Maquinaria operada con motores eléctricos | I24: 10 | J24: 15 | K24: 20 | L24: 25
H25: Flota de vehículos eléctricos | I25: 10 | J25: 15 | K25: 20 | L25: 25
H26: Campañas de eficiencia energética | I26: 10 | J26: 15 | K26: 20 | L26: 25
H27: Sensores de presencia | I27: 10 | J27: 15 | K27: 20 | L27: 25
H28: Sensores luz día | I28: 10 | J28: 15 | K28: 20 | L28: 25
H29: Programación horaria | I29: 10 | J29: 15 | K29: 20 | L29: 25
H30: Otra | I30: 10 | J30: 15 | K30: 20 | L30: 25
B31: 2 | C31: =C32+C48+C43+C36 -> 145 | D31: =D32+D48+D43+D36 -> 290 | E31: =E32+E48+E43+E36 -> 435 | F31: =F32+F48+F43+F36 -> 604 | G31: CAMBIO CLIMÁTICO
B32: 2.1 | C32: =I32 -> 25 | D32: =J32 -> 50 | E32: =K32 -> 75 | F32: =L32 -> 100 | G32: ¿Calcula la huella de carbono en su empresa anualmente? | H32: SI | I32: 25 | J32: 50 | K32: 75 | L32: 100 | M32: NO
H33: NO | I33: 0 | J33: 0 | K33: 0 | L33: 0
B34: 2.1 | G34: ¿Cuantas toneladas de CO2 equivalente genera anualmente? | M34: NO
H35: No Sabe. Justifique su respuesta
B36: 2.2 | C36: 60 | D36: 120 | E36: 180 | F36: 252 | G36: ¿Cuáles de las siguientes acciones de reducción de huella de carbono realiza en su empresa? Si su respuesta es "otra" especifique ¿Cuál? | H36: Disminución en el uso de materias primas | I36: 10 | J36: 20 | K36: 30 | L36: 42 | M36: SI
H37: Disminución de empaques y embalajes | I37: 10 | J37: 20 | K37: 30 | L37: 42
H38: Ahorro de consumo de agua | I38: 10 | J38: 20 | K38: 30 | L38: 42
H39: Ahorro de consumo de energía | I39: 10 | J39: 20 | K39: 30 | L39: 42
H40: Optimización en procesos de distribución | I40: 10 | J40: 20 | K40: 30 | L40: 42
H41: Otra | I41: 10 | J41: 20 | K41: 30 | L41: 42
H42: NO | I42: 0 | J42: 0 | K42: 0 | L42: 0
B43: 2.3 | C43: 60 | D43: 120 | E43: 180 | F43: 252 | G43: ¿Cuáles de las siguientes acciones de compensación de huella de carbono realiza en su empresa? | H43: Siembra de árboles | I43: 15 | J43: 30 | K43: 45 | L43: 63 | M43: SI
H44: Inyección de carbono en el subsuelo | I44: 15 | J44: 30 | K44: 45 | L44: 63
H45: Elaboración de materias primas a base de carbono | I45: 15 | J45: 30 | K45: 45 | L45: 63
H46: Granjas de carbono | I46: 15 | J46: 30 | K46: 45 | L46: 63
H47: Ninguna de las anteriores | I47: 0 | J47: 0 | K47: 0 | L47: 0
B48: 2.4 | G48: Teniendo en cuenta la respuesta anterior, ¿Cuántas toneladas de CO2 equivalente compensó el año inmediatamente anterior? | M48: NO
H49: No Sabe. Justifique su respuesta
B50: 3 | C50: =+C51+C53 -> 85 | D50: =+D51+D53 -> 170 | E50: 255 | F50: 352 | G50: CONSUMO DE AGUA
B51: 3.1 | C51: =I51 -> 25 | D51: =J51 -> 50 | E51: =K51 -> 75 | F51: =L51 -> 100 | G51: ¿Calcula la huella hidrica de la organización anualmente? | H51: SI | I51: 25 | J51: 50 | K51: 75 | L51: 100 | M51: NO
H52: NO | I52: 0 | J52: 0 | K52: 0 | L52: 0
B53: 3.2 | C53: 60 | D53: 120 | E53: 180 | F53: 252 | G53: Cual es su huella gris anual | H53: Implementación de sanitarios y grifos ahorradores de agua | I53: 10 | J53: 20 | K53: 30 | L53: 42 | M53: NO
H54: Mantenimiento preventivo | I54: 10 | J54: 20 | K54: 30 | L54: 42
H55: Reutilización de aguas lluvias | I55: 10 | J55: 20 | K55: 30 | L55: 42
H56: Innovación tecnológica | I56: 10 | J56: 20 | K56: 30 | L56: 42
H57: Campañas de sensibilización | I57: 10 | J57: 20 | K57: 30 | L57: 42
H58: Otra | I58: 10 | J58: 20 | K58: 30 | L58: 42
H59: NO | I59: 0 | J59: 0 | K59: 0 | L59: 0
B61: GESTION EFICIENTE DEL USO MATERIA PRIMA Y MATERIALES | I61: Puntuación
B63: 5 | C63: =C64+C66 -> 50 | D63: =D64+D66 -> 100 | E63: =E64+E66 -> 150 | F63: =F64+F66 -> 200 | G63: INNOVACIONES EN EL PRODUCTO Y/O PROCESOS
B64: 5.1 | C64: =I64 -> 25 | D64: =J64 -> 50 | E64: =K64 -> 75 | F64: 100 | G64: Su organización cuenta con politicas y/o lineamientos de innovación en sus procesos | H64: SI | I64: 25 | J64: 50 | K64: 75 | L64: 100 | M64: NO
H65: NO | I65: 0 | J65: 0 | K65: 0 | L65: 0
B66: 5.2 | C66: 25 | D66: 50 | E66: 75 | F66: 100 | G66: ¿Qué tipo de innovaciones tiene implementadas actualmente y cuáles ha realizado en los últimos 2 años? | H66: Innovación de Producto | I66: 5 | J66: 10 | K66: 15 | L66: 20 | M66: SI
H67: Innovación de Proceso | I67: 5 | J67: 10 | K67: 15 | L67: 20
H68: Innovación de Transporte | I68: 5 | J68: 10 | K68: 15 | L68: 20
H69: Innovación de Empaque | I69: 5 | J69: 10 | K69: 15 | L69: 20
H70: Innovación en Comunicación | I70: 5 | J70: 10 | K70: 15 | L70: 20
B73: GESTION DE LOS RESIDUOS | I73: Puntuación
B75: No. | C75: Micro | D75: Pequeña | E75: Mediana | F75: Grande | G75: Criterio | H75: Respuesta | I75: Micro | J75: Pequeña | K75: Mediana | L75: Grande | M75: Evidencia
B76: 6 | G76: REINCORPORACIÓN AL CICLO PRODUCTIVO | Q76: Estandares GRI
B77: 6.1 | C77: 25 | D77: 50 | E77: 75 | F77: 100 | G77: ¿Su empresa incorpora en su ciclo productivo materiales previamente utilizados en la elaboración de otros productos y/o procesos? | H77: SI | I77: 25 | J77: 50 | K77: 75 | L77: 100 | M77: NO | Q77: 301-3 Productos Reutilizados y materiales de envasado
H78: NO | I78: 0 | J78: 0 | K78: 0 | L78: 0
B79: 6.2 | C79: =I84 -> 25 | D79: =J84 -> 50 | E79: =K84 -> 75 | F79: 100 | G79: ¿Qué porcentaje de materiales previamente utilizados en la elaboración de otros productos y/o proceso, incorpora en su ciclo productivo? | H79: Inicio de la cadena | M79: NO
H80: < 1% | I80: 0 | J80: 0 | K80: 0 | L80: 0
H81: 1 - 25% | I81: 10 | J81: 15 | K81: 20 | L81: 25 | N81: ** No aplica para servicios
H82: 25 - 50% | I82: 15 | J82: 20 | K82: 30 | L82: 50
H83: 50 - 75% | I83: 20 | J83: 35 | K83: 55 | L83: 75
H84: > 75% | I84: 25 | J84: 50 | K84: 75 | L84: 100
B85: 6.3 | C85: 25 | D85: 50 | E85: 75 | F85: 100 | G85: ¿Su empresa incorpora aguas residuales provenientes de sus actividades en sus procesos productivos? | H85: SI | I85: 25 | J85: 50 | K85: 75 | L85: 100 | M85: SI | N85: ***
H86: NO | I86: 0 | J86: 0 | K86: 0 | L86: 0
B87: 7 | C87: =C88+C90+C98+C103+C109 -> 145 | D87: =D88+D90+D98+D103+D109 -> 290 | E87: =E88+E90+E98+E103+E109 -> 435 | F87: =F88+F90+F98+F103+F109 -> 580 | G87: GESTION DE LOS RESIDUOS PROPIOS (SOLIDOS, LIQUIDOS, GASEOSOS)
B88: 7.1 | C88: =I88 -> 25 | D88: =J88 -> 50 | E88: =K88 -> 75 | F88: 100 | G88: ¿Su empresa cuenta con un plan de gestión integral de los residuos? | H88: SI | I88: 25 | J88: 50 | K88: 75 | L88: 100 | M88: NO
H89: NO | I89: 0 | J89: 0 | K89: 0 | L89: 0
B90: 7.2 | C90: 40 | D90: 80 | E90: 120 | F90: 160 | G90: ¿Cuáles acciones de reducción de residos realiza en su empresa? Si su respuesta es "otra" especifique ¿Cuál? | H90: Disminución en el uso de empaques y embalajes | I90: 5 | J90: 10 | K90: 15 | L90: 20 | M90: SI | Q90: 306-2 Residuos por tipo y metodo de eliminación
H91: Disminución en el uso de materias prima | I91: 5 | J91: 10 | K91: 15 | L91: 20
H92: Digitalización de documentos | I92: 5 | J92: 10 | K92: 15 | L92: 20
H93: Acciones de impresión inteligente | I93: 5 | J93: 10 | K93: 15 | L93: 20
H94: Implementación de baterias sanitarias ahorradoras | I94: 5 | J94: 10 | K94: 15 | L94: 20
H95: Compactadoras de residuos | I95: 5 | J95: 10 | K95: 15 | L95: 20
H96: Aumento ciclo de vida de productos | I96: 5 | J96: 10 | K96: 15 | L96: 20
H97: Otra | I97: 5 | J97: 10 | K97: 15 | L97: 20
B98: 7.3 | C98: =SUM(I98:I102) -> 25 | D98: =SUM(J98:J102) -> 50 | E98: =SUM(K98:K102) -> 75 | F98: =SUM(L98:L102) -> 100 | G98: ¿Cuáles acciones de reutilización de residos realiza en su empresa? Si su respuesta es "otra" especifique ¿Cuál? | H98: Reincorporación de materias primas en sus procesos | I98: 5 | J98: 10 | K98: 15 | L98: 20 | M98: SI | Q98: 306-2 Residuos por tipo y metodo de eliminación
H99: Uso de residuos en nuevos procesos | I99: 5 | J99: 10 | K99: 15 | L99: 20
H100: Transformación de residuos en nuevos productos | I100: 5 | J100: 10 | K100: 15 | L100: 20
H101: Reutilización de activos fijos, materiales y/o insumos | I101: 5 | J101: 10 | K101: 15 | L101: 20
H102: Otra | I102: 5 | J102: 10 | K102: 15 | L102: 20
B103: 7.4 | C103: =SUM(I103:I108) -> 30 | D103: =SUM(J103:J108) -> 60 | E103: =SUM(K103:K108) -> 90 | F103: 120 | G103: ¿Cuáles acciones de reciclaje de residos realiza en su empresa? Si su respuesta es "otra" especifique ¿Cuál? | H103: Implementación de codigo de colores | I103: 5 | J103: 10 | K103: 15 | L103: 20 | M103: SI | Q103: 301-2 Insumos Reciclados y 306-2 Residuos por tipo y metodo de eliminación
H104: Separación en la fuente | I104: 5 | J104: 10 | K104: 15 | L104: 20
H105: Instalación de puntos ecológicos | I105: 5 | J105: 10 | K105: 15 | L105: 20
H106: Rutas sanitarias | I106: 5 | J106: 10 | K106: 15 | L106: 20
H107: Entrega a gestores externos | I107: 5 | J107: 10 | K107: 15 | L107: 20
H108: Otra | I108: 5 | J108: 10 | K108: 15 | L108: 20
B109: 7.7 | C109: =I109 -> 25 | D109: =J109 -> 50 | E109: =K109 -> 75 | F109: 100 | G109: ¿Actualmente su organización tiene un proceso de control de emisiones? | H109: SI ¿Cuáles? | I109: 25 | J109: 50 | K109: 75 | L109: 100 | M109: SI | Q109: 305-4 Intensidad de las emisiones GEI, 305-6 Emisiones de sustancias que agotan la capa de ozono, 305-7 NO, SO y otras emisiones significativas del aire y 305-5 Reducción de las emisiones de GEI
H110: NO | I110: 0 | J110: 0 | K110: 0 | L110: 0
H111: No aplica | I111: 0 | J111: 0 | K111: 0 | L111: 0
B113: RESPONSABILIDAD SOCIAL EMPRESARIAL | I113: Puntuación
B115: No. | C115: Micro | D115: Pequeña | E115: Mediana | F115: Grande | G115: Criterio | H115: Respuesta | I115: Micro | J115: Pequeña | K115: Mediana | L115: Grande | M115: Evidencia
B116: 8 | C116: =C125+C117+C130+C135+C137+C139+C141+C143+C121+C148+C151 -> 275 | D116: =D125+D117+D130+D135+D137+D139+D141+D143+D121+D148+D151 -> 550 | E116: =E125+E117+E130+E135+E137+E139+E141+E143+E121+E148+E151 -> 825 | F116: =F125+F117+F130+F135+F137+F139+F141+F143+F121+F148+F151 -> 1100 | G116: POLITICAS DE RESPONSABILIDAD SOCIAL Y AMBIENTAL
B117: 8.1 | C117: =SUM(I117:I120) -> 25 | D117: =SUM(J117:J120) -> 50 | E117: =SUM(K117:K120) -> 75 | F117: =SUM(L117:L120) -> 100 | G117: Su organización cuenta con estrategias y/o programa de preservación de flora | H117: Bonos de carbono, | I117: 6.25 | J117: 12.5 | K117: 18.75 | L117: 25 | M117: SI
H118: Bonos verdes | I118: 6.25 | J118: 12.5 | K118: 18.75 | L118: 25
H119: inversiones en protección de especies amenazadas | I119: 6.25 | J119: 12.5 | K119: 18.75 | L119: 25
H120: Otra | I120: 6.25 | J120: 12.5 | K120: 18.75 | L120: 25
B121: 8.2 | C121: =SUM(I121:I124) -> 25 | D121: =SUM(J121:J124) -> 50 | E121: =SUM(K121:K124) -> 75 | F121: =SUM(L121:L124) -> 100 | G121: Su organización cuenta con estrategias y/o programa de preservación de fauna | H121: inversiones en protección de especies amenazadas | I121: 6.25 | J121: 12.5 | K121: 18.75 | L121: 25 | M121: SI
H122: compensaciones por pérdida de biodiversidad | I122: 6.25 | J122: 12.5 | K122: 18.75 | L122: 25
H123: Inversiones en conservación de biodiversidad | I123: 6.25 | J123: 12.5 | K123: 18.75 | L123: 25
H124: Otra | I124: 6.25 | J124: 12.5 | K124: 18.75 | L124: 25
B125: 8.3 | C125: =SUM(I125:I129) -> 25 | D125: =SUM(J125:J129) -> 50 | E125: =SUM(K125:K129) -> 75 | F125: =SUM(L125:L129) -> 100 | G125: Su organización cuenta con espacios de esparcimiento para sus empleados que fomenten su vida familiar, personal y laboral | H125: Dia libre por cumpleaños | I125: 5 | J125: 10 | K125: 15 | L125: 20 | M125: SI
H126: Dia de Familia | I126: 5 | J126: 10 | K126: 15 | L126: 20
H127: Convivencias | I127: 5 | J127: 10 | K127: 15 | L127: 20
H128: Eventos Especiales | I128: 5 | J128: 10 | K128: 15 | L128: 20
H129: Otra | I129: 5 | J129: 10 | K129: 15 | L129: 20
B130: 8.4 | C130: =SUM(I130:I134) -> 25 | D130: =SUM(J130:J134) -> 50 | E130: =SUM(K130:K134) -> 75 | F130: =SUM(L130:L134) -> 100 | G130: ¿Con cuáles estrategias cuenta su empresa para apoyar a los empleados en su crecimiento personal y profesional? | H130: Apoyo economico para estudios | I130: 5 | J130: 10 | K130: 15 | L130: 20 | M130: SI
H131: Plan Carrera | I131: 5 | J131: 10 | K131: 15 | L131: 20
H132: Flexibilidad horaria | I132: 5 | J132: 10 | K132: 15 | L132: 20
H133: Becas Universitarias | I133: 5 | J133: 10 | K133: 15 | L133: 20
H134: Otra | I134: 5 | J134: 10 | K134: 15 | L134: 20
B135: 8.5 | C135: =I135 -> 25 | D135: =J135 -> 50 | E135: =K135 -> 75 | F135: 100 | G135: Su organización cuenta con una política de responsabilidad social empresarial | H135: Si | I135: 25 | J135: 50 | K135: 75 | L135: 100 | M135: SI
H136: No | I136: 0 | J136: 0 | K136: 0 | L136: 0
B137: 8.6 | C137: =I137 -> 25 | D137: =J137 -> 50 | E137: =K137 -> 75 | F137: 100 | G137: ¿Cuenta con lineamientos y/o políticas en su empresa favorecen la vinculación laboral a población vulnerable y/o especial protección constitucional? | H137: Si ¿Cuáles? | I137: 25 | J137: 50 | K137: 75 | L137: 100 | M137: SI
H138: No | I138: 0 | J138: 0 | K138: 0 | L138: 0
B139: 8.7 | C139: =I139 -> 25 | D139: =J139 -> 50 | E139: =K139 -> 75 | F139: 100 | G139: ¿Su organización cuenta con lineamientos y/o políticas de inclusión laboral de personas con movilidad reducida y/o personas con otro tipo de discapacidades? | H139: Si ¿Cuáles? | I139: 25 | J139: 50 | K139: 75 | L139: 100 | M139: SI
H140: No | I140: 0 | J140: 0 | K140: 0 | L140: 0
B141: 8.8 | C141: =I141 -> 25 | D141: =J141 -> 50 | E141: =K141 -> 75 | F141: 100 | G141: ¿Su organización apoya causas sociales y/o fundaciones económicamente o mediante voluntariado donde se involucre a los empleados? | H141: Si ¿Cuáles? | I141: 25 | J141: 50 | K141: 75 | L141: 100 | M141: SI
H142: No | I142: 0 | J142: 0 | K142: 0 | L142: 0
B143: 8.9 | C143: =SUM(I143:I147) -> 25 | D143: =SUM(J143:J147) -> 50 | E143: =SUM(K143:K147) -> 75 | F143: =SUM(L143:L147) -> 100 | G143: Su organización cuenta con lineamientos y/o políticas de beneficios adicionales para sus empleados | H143: Prima Extralegal | I143: 5 | J143: 10 | K143: 15 | L143: 20 | M143: SI
H144: Bonificaciónes | I144: 5 | J144: 10 | K144: 15 | L144: 20
H145: Bonos de alimentación | I145: 5 | J145: 10 | K145: 15 | L145: 20
H146: Bonos de Gasolina | I146: 5 | J146: 10 | K146: 15 | L146: 20
H147: Otro | I147: 5 | J147: 10 | K147: 15 | L147: 20
B148: 8.10 | C148: =SUM(I148:I150) -> 25 | D148: =SUM(J148:J150) -> 50.02 | E148: =SUM(K148:K150) -> 75 | F148: 100 | G148: ¿Cuenta con iniciativas en materia de comunicación organizacional para informar, sensibilizar o influir en los comportamientos favorables en torno a la protección ambiental en el ámbito laboral de su empresa? | H148: Correo eletronicos | I148: 8.33 | J148: 16.7 | K148: 25 | L148: 33.33 | M148: SI
H149: Capacitaciones | I149: 8.33 | J149: 16.66 | K149: 25 | L149: 33.3
H150: Otro | I150: 8.34 | J150: 16.66 | K150: 25 | L150: 33.3
B151: 8.11 | C151: =SUM(I151:I153) -> 25 | D151: =SUM(J151:J153) -> 49.98 | E151: =SUM(K151:K153) -> 75 | F151: 100 | G151: ¿Cuenta con estrategias de marketing para ganar legitimidad y confianza frente a sus clientes en materia de responsabilidad social? | H151: Pagina Web | I151: 8.33 | J151: 16.66 | K151: 25 | L151: 33.34 | M151: SI
H152: Vallas Publicitarias | I152: 8.33 | J152: 16.66 | K152: 25 | L152: 33.33
H153: Otro | I153: 8.34 | J153: 16.66 | K153: 25 | L153: 33.3
B154: 9 | C154: =C155 -> 25 | D154: =D155 -> 50 | E154: =E155 -> 75 | F154: =F155 -> 100 | G154: SEGURIDAD INDUSTRIAL Y SALUD EN EL TRABAJO
B155: 9.1 | C155: =I155 -> 25 | D155: =J155 -> 50 | E155: =K155 -> 75 | F155: 100 | G155: Su organización cuenta con lineamientos y/o políticas de seguridad industrial y salud ocupacional? | H155: Si ¿Cuáles? | I155: 25 | J155: 50 | K155: 75 | L155: 100 | M155: NO
H156: No | I156: 0 | J156: 0 | K156: 0 | L156: 0
C158: Micro | D158: Pequeña | E158: Mediana | F158: Grande
B159: total | C159: =C154+C116+C87+C76+C63+C50+C31+C7 -> 910 | D159: =D154+D116+D87+D76+D63+D50+D31+D7 -> 1780 | E159: =E154+E116+E87+E76+E63+E50+E31+E7 -> 2650 | F159: =F154+F116+F87+F76+F63+F50+F31+F7 -> 3556

Sheet Categoria (hidden)
C2: Proveedores Bienes | I2: Proveedores Servicios
C3: Categorias de Sostenibilidad | I3: Categorias de Sostenibilidad
C4: Grande | D4: Mediana | E4: Pequeña | F4: Micro | I4: Grande | J4: Mediana | K4: Pequeña | L4: Micro
B5: Bronce | C5: 0 - 396 | D5: 0 - 289 | E5: 0 - 195 | F5: 0 - 99 | H5: Bronce | I5: 0 - 342 | J5: 0 - 250 | K5: 0 - 168 | L5: 0 - 86
B6: Plata | C6: 397 - 732 | D6: 289 - 537 | E6: 196 - 360 | F6: 100 - 182 | H6: Plata | I6: 343 - 632 | J6: 259 - 462 | K6: 169 - 310 | L6: 87 - 158
B7: Oro | C7: 733- 890 | D7: 539 - 654 | E7: 361 - 438 | F7: 183 - 222 | H7: Oro | I7: 632- 769 | J7: 463 - 561 | K7: 311 - 377 | L7: 159 - 192
B8: Platino | C8: 891 - 989 | D8: 655 - 725 | E8: 439 - 486 | F8: 223 - 247 | H8: Platino | I8: 770 - 854 | J8: 562 - 623 | K8: 378 - 418 | L8: 192 - 213
B10: Preguntas No Aplica | D10: 3 | H10: Preguntas No Aplica | J10: 9
B11: Total Preguntas | D11: 48 | H11: Total Preguntas | J11: 39
B12: Preguntas Puntaje | D12: 40 | H12: Preguntas Puntaje | J12: 32
C14: Tipo de Empresa | D14: Porcentaje | E14: Clave | F14: Categoria
C15: Micro | D15: 0 | E15: =CONCATENATE(C15,D15) -> Micro0 | F15: Bronce
C16: Micro | D16: 0.01 | E16: =CONCATENATE(C16,D16) -> Micro0,01 | F16: Bronce
C17: Micro | D17: 0.02 | E17: =CONCATENATE(C17,D17) -> Micro0,02 | F17: Bronce
C18: Micro | D18: 0.03 | E18: Micro0,03 | F18: Bronce
C19: Micro | D19: 0.04 | E19: Micro0,04 | F19: Bronce
C20: Micro | D20: 0.05 | E20: Micro0,05 | F20: Bronce
C21: Micro | D21: 0.06 | E21: Micro0,06 | F21: Bronce
C22: Micro | D22: 0.07 | E22: Micro0,07 | F22: Bronce
C23: Micro | D23: 0.08 | E23: Micro0,08 | F23: Bronce
C24: Micro | D24: 0.09 | E24: Micro0,09 | F24: Bronce
C25: Micro | D25: 0.1 | E25: Micro0,1 | F25: Bronce
C26: Micro | D26: 0.11 | E26: Micro0,11 | F26: Bronce
C27: Micro | D27: 0.12 | E27: Micro0,12 | F27: Bronce
C28: Micro | D28: 0.13 | E28: Micro0,13 | F28: Bronce
C29: Micro | D29: 0.14 | E29: Micro0,14 | F29: Bronce
C30: Micro | D30: 0.15 | E30: Micro0,15 | F30: Bronce
C31: Micro | D31: 0.16 | E31: Micro0,16 | F31: Bronce
C32: Micro | D32: 0.17 | E32: Micro0,17 | F32: Bronce
C33: Micro | D33: 0.18 | E33: Micro0,18 | F33: Bronce
C34: Micro | D34: 0.19 | E34: Micro0,19 | F34: Bronce
C35: Micro | D35: 0.2 | E35: Micro0,2 | F35: Bronce
C36: Micro | D36: 0.21 | E36: Micro0,21 | F36: Bronce
C37: Micro | D37: 0.22 | E37: Micro0,22 | F37: Bronce
C38: Micro | D38: 0.23 | E38: Micro0,23 | F38: Bronce
C39: Micro | D39: 0.24 | E39: Micro0,24 | F39: Bronce
C40: Micro | D40: 0.25 | E40: Micro0,25 | F40: Bronce
C41: Micro | D41: 0.26 | E41: Micro0,26 | F41: Bronce
C42: Micro | D42: 0.27 | E42: Micro0,27 | F42: Bronce
C43: Micro | D43: 0.28 | E43: Micro0,28 | F43: Bronce
C44: Micro | D44: 0.29 | E44: Micro0,29 | F44: Bronce
C45: Micro | D45: 0.3 | E45: Micro0,3 | F45: Bronce
C46: Micro | D46: 0.31 | E46: Micro0,31 | F46: Bronce
C47: Micro | D47: 0.32 | E47: Micro0,32 | F47: Bronce
C48: Micro | D48: 0.33 | E48: Micro0,33 | F48: Bronce
C49: Micro | D49: 0.34 | E49: Micro0,34 | F49: Bronce
C50: Micro | D50: 0.35 | E50: Micro0,35 | F50: Bronce
C51: Micro | D51: 0.36 | E51: Micro0,36 | F51: Bronce
C52: Micro | D52: 0.37 | E52: Micro0,37 | F52: Bronce
C53: Micro | D53: 0.38 | E53: Micro0,38 | F53: Bronce
C54: Micro | D54: 0.39 | E54: Micro0,39 | F54: Bronce
C55: Micro | D55: 0.4 | E55: Micro0,4 | F55: Bronce
C56: Micro | D56: 0.41 | E56: Micro0,41 | F56: Plata
C57: Micro | D57: 0.42 | E57: Micro0,42 | F57: Plata
C58: Micro | D58: 0.43 | E58: Micro0,43 | F58: Plata
C59: Micro | D59: 0.44 | E59: Micro0,44 | F59: Plata
C60: Micro | D60: 0.45 | E60: Micro0,45 | F60: Plata
C61: Micro | D61: 0.46 | E61: Micro0,46 | F61: Plata
C62: Micro | D62: 0.47 | E62: Micro0,47 | F62: Plata
C63: Micro | D63: 0.48 | E63: Micro0,48 | F63: Plata
C64: Micro | D64: 0.49 | E64: Micro0,49 | F64: Plata
C65: Micro | D65: 0.5 | E65: Micro0,5 | F65: Plata
C66: Micro | D66: 0.51 | E66: Micro0,51 | F66: Plata
C67: Micro | D67: 0.52 | E67: Micro0,52 | F67: Plata
C68: Micro | D68: 0.53 | E68: Micro0,53 | F68: Plata
C69: Micro | D69: 0.54 | E69: Micro0,54 | F69: Plata
C70: Micro | D70: 0.55 | E70: Micro0,55 | F70: Plata
C71: Micro | D71: 0.56 | E71: Micro0,56 | F71: Plata
C72: Micro | D72: 0.57 | E72: Micro0,57 | F72: Plata
C73: Micro | D73: 0.58 | E73: Micro0,58 | F73: Plata
C74: Micro | D74: 0.59 | E74: Micro0,59 | F74: Plata
C75: Micro | D75: 0.6 | E75: Micro0,6 | F75: Plata
C76: Micro | D76: 0.61 | E76: Micro0,61 | F76: Plata
C77: Micro | D77: 0.62 | E77: Micro0,62 | F77: Plata
C78: Micro | D78: 0.63 | E78: Micro0,63 | F78: Plata
C79: Micro | D79: 0.64 | E79: Micro0,64 | F79: Plata
C80: Micro | D80: 0.65 | E80: Micro0,65 | F80: Plata
C81: Micro | D81: 0.66 | E81: =CONCATENATE(C81,D81) -> Micro0,66 | F81: Plata
C82: Micro | D82: 0.67 | E82: Micro0,67 | F82: Plata
C83: Micro | D83: 0.68 | E83: Micro0,68 | F83: Plata
C84: Micro | D84: 0.69 | E84: Micro0,69 | F84: Plata
C85: Micro | D85: 0.7 | E85: Micro0,7 | F85: Plata
C86: Micro | D86: 0.71 | E86: Micro0,71 | F86: Plata
C87: Micro | D87: 0.72 | E87: Micro0,72 | F87: Plata
C88: Micro | D88: 0.73 | E88: Micro0,73 | F88: Plata
C89: Micro | D89: 0.74 | E89: Micro0,74 | F89: Plata
C90: Micro | D90: 0.75 | E90: Micro0,75 | F90: Oro
C91: Micro | D91: 0.76 | E91: Micro0,76 | F91: Oro
C92: Micro | D92: 0.77 | E92: Micro0,77 | F92: Oro
C93: Micro | D93: 0.78 | E93: Micro0,78 | F93: Oro
C94: Micro | D94: 0.79 | E94: Micro0,79 | F94: Oro
C95: Micro | D95: 0.8 | E95: Micro0,8 | F95: Oro
C96: Micro | D96: 0.81 | E96: Micro0,81 | F96: Oro
C97: Micro | D97: 0.82 | E97: Micro0,82 | F97: Oro
C98: Micro | D98: 0.83 | E98: Micro0,83 | F98: Oro
C99: Micro | D99: 0.84 | E99: Micro0,84 | F99: Oro
C100: Micro | D100: 0.85 | E100: Micro0,85 | F100: Oro
C101: Micro | D101: 0.86 | E101: Micro0,86 | F101: Oro
C102: Micro | D102: 0.87 | E102: Micro0,87 | F102: Oro
C103: Micro | D103: 0.88 | E103: Micro0,88 | F103: Oro
C104: Micro | D104: 0.89 | E104: Micro0,89 | F104: Oro
C105: Micro | D105: 0.9 | E105: Micro0,9 | F105: Oro
C106: Micro | D106: 0.91 | E106: Micro0,91 | F106: Platino
C107: Micro | D107: 0.92 | E107: Micro0,92 | F107: Platino
C108: Micro | D108: 0.93 | E108: Micro0,93 | F108: Platino
C109: Micro | D109: 0.94 | E109: Micro0,94 | F109: Platino
C110: Micro | D110: 0.95 | E110: Micro0,95 | F110: Platino
C111: Micro | D111: 0.96 | E111: Micro0,96 | F111: Platino
C112: Micro | D112: 0.97 | E112: Micro0,97 | F112: Platino
C113: Micro | D113: 0.98 | E113: Micro0,98 | F113: Platino
C114: Micro | D114: 0.99 | E114: Micro0,99 | F114: Platino
C115: Micro | D115: 1 | E115: Micro1 | F115: Platino
C116: Pequeña | D116: 0 | E116: Pequeña0 | F116: Bronce
C117: Pequeña | D117: 0.01 | E117: Pequeña0,01 | F117: Bronce
C118: Pequeña | D118: 0.02 | E118: Pequeña0,02 | F118: Bronce
C119: Pequeña | D119: 0.03 | E119: Pequeña0,03 | F119: Bronce
C120: Pequeña | D120: 0.04 | E120: Pequeña0,04 | F120: Bronce
C121: Pequeña | D121: 0.05 | E121: Pequeña0,05 | F121: Bronce
C122: Pequeña | D122: 0.06 | E122: Pequeña0,06 | F122: Bronce
C123: Pequeña | D123: 0.07 | E123: Pequeña0,07 | F123: Bronce
C124: Pequeña | D124: 0.08 | E124: Pequeña0,08 | F124: Bronce
C125: Pequeña | D125: 0.09 | E125: Pequeña0,09 | F125: Bronce
C126: Pequeña | D126: 0.1 | E126: Pequeña0,1 | F126: Bronce
C127: Pequeña | D127: 0.11 | E127: Pequeña0,11 | F127: Bronce
C128: Pequeña | D128: 0.12 | E128: Pequeña0,12 | F128: Bronce
C129: Pequeña | D129: 0.13 | E129: Pequeña0,13 | F129: Bronce
C130: Pequeña | D130: 0.14 | E130: Pequeña0,14 | F130: Bronce
C131: Pequeña | D131: 0.15 | E131: Pequeña0,15 | F131: Bronce
C132: Pequeña | D132: 0.16 | E132: Pequeña0,16 | F132: Bronce
C133: Pequeña | D133: 0.17 | E133: Pequeña0,17 | F133: Bronce
C134: Pequeña | D134: 0.18 | E134: Pequeña0,18 | F134: Bronce
C135: Pequeña | D135: 0.19 | E135: Pequeña0,19 | F135: Bronce
C136: Pequeña | D136: 0.2 | E136: Pequeña0,2 | F136: Bronce
C137: Pequeña | D137: 0.21 | E137: Pequeña0,21 | F137: Bronce
C138: Pequeña | D138: 0.22 | E138: Pequeña0,22 | F138: Bronce
C139: Pequeña | D139: 0.23 | E139: Pequeña0,23 | F139: Bronce
C140: Pequeña | D140: 0.24 | E140: Pequeña0,24 | F140: Bronce
C141: Pequeña | D141: 0.25 | E141: Pequeña0,25 | F141: Bronce
C142: Pequeña | D142: 0.26 | E142: Pequeña0,26 | F142: Bronce
C143: Pequeña | D143: 0.27 | E143: Pequeña0,27 | F143: Bronce
C144: Pequeña | D144: 0.28 | E144: Pequeña0,28 | F144: Bronce
C145: Pequeña | D145: 0.29 | E145: Pequeña0,29 | F145: Bronce
C146: Pequeña | D146: 0.3 | E146: =CONCATENATE(C146,D146) -> Pequeña0,3 | F146: Bronce
C147: Pequeña | D147: 0.31 | E147: Pequeña0,31 | F147: Bronce
C148: Pequeña | D148: 0.32 | E148: Pequeña0,32 | F148: Bronce
C149: Pequeña | D149: 0.33 | E149: Pequeña0,33 | F149: Bronce
C150: Pequeña | D150: 0.34 | E150: Pequeña0,34 | F150: Bronce
C151: Pequeña | D151: 0.35 | E151: Pequeña0,35 | F151: Bronce
C152: Pequeña | D152: 0.36 | E152: Pequeña0,36 | F152: Bronce
C153: Pequeña | D153: 0.37 | E153: Pequeña0,37 | F153: Bronce
C154: Pequeña | D154: 0.38 | E154: Pequeña0,38 | F154: Bronce
C155: Pequeña | D155: 0.39 | E155: Pequeña0,39 | F155: Bronce
C156: Pequeña | D156: 0.4 | E156: Pequeña0,4 | F156: Bronce
C157: Pequeña | D157: 0.41 | E157: Pequeña0,41 | F157: Plata
C158: Pequeña | D158: 0.42 | E158: Pequeña0,42 | F158: Plata
C159: Pequeña | D159: 0.43 | E159: Pequeña0,43 | F159: Plata
C160: Pequeña | D160: 0.44 | E160: Pequeña0,44 | F160: Plata
C161: Pequeña | D161: 0.45 | E161: Pequeña0,45 | F161: Plata
C162: Pequeña | D162: 0.46 | E162: Pequeña0,46 | F162: Plata
C163: Pequeña | D163: 0.47 | E163: Pequeña0,47 | F163: Plata
C164: Pequeña | D164: 0.48 | E164: Pequeña0,48 | F164: Plata
C165: Pequeña | D165: 0.49 | E165: Pequeña0,49 | F165: Plata
C166: Pequeña | D166: 0.5 | E166: Pequeña0,5 | F166: Plata
C167: Pequeña | D167: 0.51 | E167: Pequeña0,51 | F167: Plata
C168: Pequeña | D168: 0.52 | E168: Pequeña0,52 | F168: Plata
C169: Pequeña | D169: 0.53 | E169: Pequeña0,53 | F169: Plata
C170: Pequeña | D170: 0.54 | E170: Pequeña0,54 | F170: Plata
C171: Pequeña | D171: 0.55 | E171: Pequeña0,55 | F171: Plata
C172: Pequeña | D172: 0.56 | E172: Pequeña0,56 | F172: Plata
C173: Pequeña | D173: 0.57 | E173: Pequeña0,57 | F173: Plata
C174: Pequeña | D174: 0.58 | E174: Pequeña0,58 | F174: Plata
C175: Pequeña | D175: 0.59 | E175: Pequeña0,59 | F175: Plata
C176: Pequeña | D176: 0.6 | E176: Pequeña0,6 | F176: Plata
C177: Pequeña | D177: 0.61 | E177: Pequeña0,61 | F177: Plata
C178: Pequeña | D178: 0.62 | E178: Pequeña0,62 | F178: Plata
C179: Pequeña | D179: 0.63 | E179: Pequeña0,63 | F179: Plata
C180: Pequeña | D180: 0.64 | E180: Pequeña0,64 | F180: Plata
C181: Pequeña | D181: 0.65 | E181: Pequeña0,65 | F181: Plata
C182: Pequeña | D182: 0.66 | E182: Pequeña0,66 | F182: Plata
C183: Pequeña | D183: 0.67 | E183: Pequeña0,67 | F183: Plata
C184: Pequeña | D184: 0.68 | E184: Pequeña0,68 | F184: Plata
C185: Pequeña | D185: 0.69 | E185: Pequeña0,69 | F185: Plata
C186: Pequeña | D186: 0.7 | E186: Pequeña0,7 | F186: Plata
C187: Pequeña | D187: 0.71 | E187: Pequeña0,71 | F187: Plata
C188: Pequeña | D188: 0.72 | E188: Pequeña0,72 | F188: Plata
C189: Pequeña | D189: 0.73 | E189: Pequeña0,73 | F189: Plata
C190: Pequeña | D190: 0.74 | E190: Pequeña0,74 | F190: Plata
C191: Pequeña | D191: 0.75 | E191: Pequeña0,75 | F191: Oro
C192: Pequeña | D192: 0.76 | E192: Pequeña0,76 | F192: Oro
C193: Pequeña | D193: 0.77 | E193: Pequeña0,77 | F193: Oro
C194: Pequeña | D194: 0.78 | E194: Pequeña0,78 | F194: Oro
C195: Pequeña | D195: 0.79 | E195: Pequeña0,79 | F195: Oro
C196: Pequeña | D196: 0.8 | E196: Pequeña0,8 | F196: Oro
C197: Pequeña | D197: 0.81 | E197: Pequeña0,81 | F197: Oro
C198: Pequeña | D198: 0.82 | E198: Pequeña0,82 | F198: Oro
C199: Pequeña | D199: 0.83 | E199: Pequeña0,83 | F199: Oro
C200: Pequeña | D200: 0.84 | E200: Pequeña0,84 | F200: Oro
C201: Pequeña | D201: 0.85 | E201: Pequeña0,85 | F201: Oro
C202: Pequeña | D202: 0.86 | E202: Pequeña0,86 | F202: Oro
C203: Pequeña | D203: 0.87 | E203: Pequeña0,87 | F203: Oro
... 215 more rows

Sheet Metodos (hidden)
B2: Tipo de Empresa | C2: Codigo | D2: Metodo de Verificación | E2: Codificación | F2: Puntaje
B3: Micro | C3: M | D3: 1. Eficiencia Energética | E3: =CONCATENATE(C3,"-",D3) -> M-1. Eficiencia Energética | F3: =Preguntas!C7 -> 185
B4: Micro | C4: M | D4: 2. Cambio Climático | E4: =CONCATENATE(C4,"-",D4) -> M-2. Cambio Climático | F4: =Preguntas!C31 -> 145
B5: Micro | C5: M | D5: 3. Consumo de agua | E5: M-3. Consumo de agua | F5: =Preguntas!C50 -> 85
B6: Micro | C6: M | D6: 5. Innovaciones en el Producto o Procesos | E6: M-5. Innovaciones en el Producto o Procesos | F6: =Preguntas!C63 -> 50
B7: Micro | C7: M | D7: 6. Reincorporación al Ciclo Productivo | E7: M-6. Reincorporación al Ciclo Productivo | F7: =Preguntas!C76 -> 0
B8: Micro | C8: M | D8: 7. Gestión de los Residuos Propios (Sólidos, Líquidos, Gaseosos) | E8: M-7. Gestión de los Residuos Propios (Sólidos, Líquidos, Gaseosos) | F8: =Preguntas!C87 -> 145
B9: Micro | C9: M | D9: 8. Políticas de Responsabilidad Social y Ambiental | E9: M-8. Políticas de Responsabilidad Social y Ambiental | F9: =Preguntas!C116 -> 275
B10: Micro | C10: M | D10: 9. Seguridad Industrial y Salud Ocupacional | E10: M-9. Seguridad Industrial y Salud Ocupacional | F10: =Preguntas!C154 -> 25
B11: Pequeña | C11: P | D11: 1. Eficiencia Energética | E11: =CONCATENATE(C11,"-",D11) -> P-1. Eficiencia Energética | F11: =Preguntas!D7 -> 330
B12: Pequeña | C12: P | D12: 2. Cambio Climático | E12: =CONCATENATE(C12,"-",D12) -> P-2. Cambio Climático | F12: =Preguntas!D31 -> 290
B13: Pequeña | C13: P | D13: 3. Consumo de agua | E13: P-3. Consumo de agua | F13: =Preguntas!D50 -> 170
B14: Pequeña | C14: P | D14: 5. Innovaciones en el Producto o Procesos | E14: P-5. Innovaciones en el Producto o Procesos | F14: =Preguntas!D63 -> 100
B15: Pequeña | C15: P | D15: 6. Reincorporación al Ciclo Productivo | E15: P-6. Reincorporación al Ciclo Productivo | F15: =Preguntas!D76 -> 0
B16: Pequeña | C16: P | D16: 7. Gestión de los Residuos Propios (Sólidos, Líquidos, Gaseosos) | E16: P-7. Gestión de los Residuos Propios (Sólidos, Líquidos, Gaseosos) | F16: =Preguntas!D87 -> 290
B17: Pequeña | C17: P | D17: 8. Políticas de Responsabilidad Social y Ambiental | E17: P-8. Políticas de Responsabilidad Social y Ambiental | F17: =Preguntas!D116 -> 550
B18: Pequeña | C18: P | D18: 9. Seguridad Industrial y Salud Ocupacional | E18: P-9. Seguridad Industrial y Salud Ocupacional | F18: =Preguntas!D154 -> 50
B19: Mediana | C19: Me | D19: 1. Eficiencia Energética | E19: Me-1. Eficiencia Energética | F19: =Preguntas!E7 -> 475
B20: Mediana | C20: Me | D20: 2. Cambio Climático | E20: Me-2. Cambio Climático | F20: =Preguntas!E31 -> 435
B21: Mediana | C21: Me | D21: 3. Consumo de agua | E21: Me-3. Consumo de agua | F21: =Preguntas!E50 -> 255
B22: Mediana | C22: Me | D22: 5. Innovaciones en el Producto o Procesos | E22: Me-5. Innovaciones en el Producto o Procesos | F22: =Preguntas!E63 -> 150
B23: Mediana | C23: Me | D23: 6. Reincorporación al Ciclo Productivo | E23: Me-6. Reincorporación al Ciclo Productivo | F23: =Preguntas!E76 -> 0
B24: Mediana | C24: Me | D24: 7. Gestión de los Residuos Propios (Sólidos, Líquidos, Gaseosos) | E24: Me-7. Gestión de los Residuos Propios (Sólidos, Líquidos, Gaseosos) | F24: =Preguntas!E87 -> 435
B25: Mediana | C25: Me | D25: 8. Políticas de Responsabilidad Social y Ambiental | E25: Me-8. Políticas de Responsabilidad Social y Ambiental | F25: =Preguntas!E116 -> 825
B26: Mediana | C26: Me | D26: 9. Seguridad Industrial y Salud Ocupacional | E26: Me-9. Seguridad Industrial y Salud Ocupacional | F26: =Preguntas!E154 -> 75
B27: Grande | C27: G | D27: 1. Eficiencia Energética | E27: G-1. Eficiencia Energética | F27: =Preguntas!F7 -> 620
B28: Grande | C28: G | D28: 2. Cambio Climático | E28: G-2. Cambio Climático | F28: =Preguntas!F31 -> 604
B29: Grande | C29: G | D29: 3. Consumo de agua | E29: G-3. Consumo de agua | F29: =Preguntas!F50 -> 352
B30: Grande | C30: G | D30: 5. Innovaciones en el Producto o Procesos | E30: G-5. Innovaciones en el Producto o Procesos | F30: =Preguntas!F63 -> 200
B31: Grande | C31: G | D31: 6. Reincorporación al Ciclo Productivo | E31: G-6. Reincorporación al Ciclo Productivo | F31: =Preguntas!F76 -> 0
B32: Grande | C32: G | D32: 7. Gestión de los Residuos Propios (Sólidos, Líquidos, Gaseosos) | E32: G-7. Gestión de los Residuos Propios (Sólidos, Líquidos, Gaseosos) | F32: =Preguntas!F87 -> 580
B33: Grande | C33: G | D33: 8. Políticas de Responsabilidad Social y Ambiental | E33: G-8. Políticas de Responsabilidad Social y Ambiental | F33: =Preguntas!F116 -> 1100
B34: Grande | C34: G | D34: 9. Seguridad Industrial y Salud Ocupacional | E34: G-9. Seguridad Industrial y Salud Ocupacional | F34: =Preguntas!F154 -> 100

Sheet Calificación (hidden)
B2: Número Pregunta | C2: Tipo de Empresa | D2: Respuesta | E2: Clave | F2: Calificación
B3: 1.1 | C3: M | D3: SI | E3: =CONCATENATE(B3,"-",C3,"-",D3) -> 1.1-M-SI | F3: 25
B4: 1.1 | C4: M | D4: NO | E4: =CONCATENATE(B4,"-",C4,"-",D4) -> 1.1-M-NO | F4: 0
B5: 1.2 | C5: M | D5: X | E5: 1.2-M-X | F5: 5
B6: 1.2 | C6: M | E6: 1.2-M- | F6: 0
B7: 1.21 | C7: M | D7: X | E7: 1.21-M-X | F7: 5
B8: 1.21 | C8: M | E8: 1.21-M- | F8: 0
B9: 1.22 | C9: M | D9: X | E9: 1.22-M-X | F9: 5
B10: 1.22 | C10: M | E10: 1.22-M- | F10: 0
B11: 1.23 | C11: M | D11: X | E11: 1.23-M-X | F11: 5
B12: 1.23 | C12: M | E12: 1.23-M- | F12: 0
B13: 1.24 | C13: M | D13: X | E13: 1.24-M-X | F13: 5
B14: 1.24 | C14: M | E14: 1.24-M- | F14: 0
B15: 1.25 | C15: M | D15: X | E15: 1.25-M-X | F15: 5
B16: 1.25 | C16: M | E16: 1.25-M- | F16: 0
B17: 1.3 | C17: M | D17: < 1% | E17: 1.3-M-< 1% | F17: 0
B18: 1.3 | C18: M | D18: 1 - 25% | E18: 1.3-M-1 - 25% | F18: 10
B19: 1.3 | C19: M | D19: 25 - 50% | E19: 1.3-M-25 - 50% | F19: 15
B20: 1.3 | C20: M | D20: 50 - 75% | E20: 1.3-M-50 - 75% | F20: 20
B21: 1.3 | C21: M | D21: > 75% | E21: 1.3-M-> 75% | F21: 25
B22: 1.4 | C22: M | D22: SI | E22: 1.4-M-SI | F22: 25
B23: 1.4 | C23: M | D23: NO | E23: 1.4-M-NO | F23: 0
B24: 1.5 | C24: M | D24: X | E24: 1.5-M-X | F24: 10
B25: 1.5 | C25: M | E25: 1.5-M- | F25: 0
B26: 1.51 | C26: M | D26: X | E26: 1.51-M-X | F26: 10
B27: 1.51 | C27: M | E27: 1.51-M- | F27: 0
B28: 1.52 | C28: M | D28: X | E28: 1.52-M-X | F28: 10
B29: 1.52 | C29: M | E29: 1.52-M- | F29: 0
B30: 1.53 | C30: M | D30: X | E30: 1.53-M-X | F30: 10
B31: 1.53 | C31: M | E31: 1.53-M- | F31: 0
B32: 1.54 | C32: M | D32: X | E32: 1.54-M-X | F32: 10
B33: 1.54 | C33: M | E33: 1.54-M- | F33: 0
B34: 1.55 | C34: M | D34: X | E34: 1.55-M-X | F34: 10
B35: 1.55 | C35: M | E35: 1.55-M- | F35: 0
B36: 1.56 | C36: M | D36: X | E36: 1.56-M-X | F36: 10
B37: 1.56 | C37: M | E37: 1.56-M- | F37: 0
B38: 1.57 | C38: M | D38: X | E38: 1.57-M-X | F38: 10
B39: 1.57 | C39: M | E39: 1.57-M- | F39: 0
B40: 2.1 | C40: M | D40: SI | E40: 2.1-M-SI | F40: 25
B41: 2.1 | C41: M | D41: NO | E41: 2.1-M-NO | F41: 0
B42: 2.2 | C42: M | D42: X | E42: 2.2-M-X | F42: 10
B43: 2.2 | C43: M | E43: 2.2-M- | F43: 0
B44: 2.21 | C44: M | D44: X | E44: 2.21-M-X | F44: 10
B45: 2.21 | C45: M | E45: 2.21-M- | F45: 0
B46: 2.22 | C46: M | D46: X | E46: 2.22-M-X | F46: 10
B47: 2.22 | C47: M | E47: 2.22-M- | F47: 0
B48: 2.23 | C48: M | D48: X | E48: 2.23-M-X | F48: 10
B49: 2.23 | C49: M | E49: 2.23-M- | F49: 0
B50: 2.24 | C50: M | D50: X | E50: 2.24-M-X | F50: 10
B51: 2.24 | C51: M | E51: 2.24-M- | F51: 0
B52: 2.25 | C52: M | D52: X | E52: 2.25-M-X | F52: 10
B53: 2.25 | C53: M | E53: 2.25-M- | F53: 0
B54: 2.31 | C54: M | D54: X | E54: 2.31-M-X | F54: 15
B55: 2.31 | C55: M | E55: 2.31-M- | F55: 0
B56: 2.32 | C56: M | D56: X | E56: 2.32-M-X | F56: 15
B57: 2.32 | C57: M | E57: 2.32-M- | F57: 0
B58: 2.33 | C58: M | D58: X | E58: 2.33-M-X | F58: 15
B59: 2.33 | C59: M | E59: 2.33-M- | F59: 0
B60: 2.34 | C60: M | D60: X | E60: 2.34-M-X | F60: 0
B61: 2.34 | C61: M | E61: 2.34-M- | F61: 0
B62: 2.3 | C62: M | D62: X | E62: 2.3-M-X | F62: 15
B63: 2.3 | C63: M | E63: 2.3-M- | F63: 0
B64: 3.1 | C64: M | D64: SI | E64: 3.1-M-SI | F64: 25
B65: 3.1 | C65: M | D65: NO | E65: 3.1-M-NO | F65: 0
B66: 3.2 | C66: M | D66: X | E66: 3.2-M-X | F66: 10
B67: 3.2 | C67: M | E67: 3.2-M- | F67: 0
B68: 3.21 | C68: M | D68: X | E68: =CONCATENATE(B68,"-",C68,"-",D68) -> 3.21-M-X | F68: 10
B69: 3.21 | C69: M | E69: 3.21-M- | F69: 0
B70: 3.22 | C70: M | D70: X | E70: 3.22-M-X | F70: 10
B71: 3.22 | C71: M | E71: 3.22-M- | F71: 0
B72: 3.23 | C72: M | D72: X | E72: 3.23-M-X | F72: 10
B73: 3.23 | C73: M | E73: 3.23-M- | F73: 0
B74: 3.24 | C74: M | D74: X | E74: 3.24-M-X | F74: 10
B75: 3.24 | C75: M | E75: 3.24-M- | F75: 0
B76: 3.25 | C76: M | D76: X | E76: 3.25-M-X | F76: 10
B77: 3.25 | C77: M | E77: 3.25-M- | F77: 0
B78: 4.1 | C78: M | D78: SI | E78: 4.1-M-SI | F78: 25
B79: 4.1 | C79: M | D79: NO | E79: 4.1-M-NO | F79: 0
B80: 4.2 | C80: M | D80: X | E80: 4.2-M-X | F80: 5
B81: 4.2 | C81: M | E81: 4.2-M- | F81: 0
B82: 4.21 | C82: M | D82: X | E82: 4.21-M-X | F82: 5
B83: 4.21 | C83: M | E83: 4.21-M- | F83: 0
B84: 4.22 | C84: M | D84: X | E84: 4.22-M-X | F84: 5
B85: 4.22 | C85: M | E85: 4.22-M- | F85: 0
B86: 4.23 | C86: M | D86: X | E86: 4.23-M-X | F86: 5
B87: 4.23 | C87: M | E87: 4.23-M- | F87: 0
B88: 4.24 | C88: M | D88: X | E88: 4.24-M-X | F88: 5
B89: 4.24 | C89: M | E89: 4.24-M- | F89: 0
B90: 4.3 | C90: M | D90: X | E90: 4.3-M-X | F90: 5
B91: 4.3 | C91: M | E91: 4.3-M- | F91: 0
B92: 4.31 | C92: M | D92: X | E92: 4.31-M-X | F92: 5
B93: 4.31 | C93: M | E93: 4.31-M- | F93: 0
B94: 4.32 | C94: M | D94: X | E94: 4.32-M-X | F94: 5
B95: 4.32 | C95: M | E95: 4.32-M- | F95: 0
B96: 4.33 | C96: M | D96: X | E96: 4.33-M-X | F96: 5
B97: 4.33 | C97: M | E97: 4.33-M- | F97: 0
B98: 4.34 | C98: M | D98: X | E98: 4.34-M-X | F98: 5
B99: 4.34 | C99: M | E99: 4.34-M- | F99: 0
B100: 4.35 | C100: M | D100: X | E100: 4.35-M-X | F100: 5
B101: 4.35 | C101: M | E101: 4.35-M- | F101: 0
B102: 4.36 | C102: M | D102: X | E102: 4.36-M-X | F102: 5
B103: 4.36 | C103: M | E103: 4.36-M- | F103: 0
B104: 4.4 | C104: M | D104: X | E104: 4.4-M-X | F104: 5
B105: 4.4 | C105: M | E105: 4.4-M- | F105: 0
B106: 4.41 | C106: M | D106: X | E106: 4.41-M-X | F106: 20
B107: 4.41 | C107: M | E107: 4.41-M- | F107: 0
B108: 5.1 | C108: M | D108: SI | E108: 5.1-M-SI | F108: 25
B109: 5.1 | C109: M | D109: NO | E109: 5.1-M-NO | F109: 0
B110: 5.2 | C110: M | D110: X | E110: 5.2-M-X | F110: 5
B111: 5.2 | C111: M | E111: 5.2-M- | F111: 0
B112: 5.21 | C112: M | D112: X | E112: 5.21-M-X | F112: 5
B113: 5.21 | C113: M | E113: 5.21-M- | F113: 0
B114: 5.22 | C114: M | D114: X | E114: 5.22-M-X | F114: 5
B115: 5.22 | C115: M | E115: 5.22-M- | F115: 0
B116: 5.23 | C116: M | D116: X | E116: 5.23-M-X | F116: 5
B117: 5.23 | C117: M | E117: 5.23-M- | F117: 0
B118: 5.24 | C118: M | D118: X | E118: 5.24-M-X | F118: 5
B119: 5.24 | C119: M | E119: 5.24-M- | F119: 0
B120: 6.1 | C120: M | D120: SI | E120: 6.1-M-SI | F120: 25
B121: 6.1 | C121: M | D121: NO | E121: 6.1-M-NO | F121: 0
B122: 6.2 | C122: M | D122: < 1% | E122: 6.2-M-< 1% | F122: 0
B123: 6.2 | C123: M | D123: 1 - 25% | E123: 6.2-M-1 - 25% | F123: 10
B124: 6.2 | C124: M | D124: 25 - 50% | E124: 6.2-M-25 - 50% | F124: 15
B125: 6.2 | C125: M | D125: 50 - 75% | E125: 6.2-M-50 - 75% | F125: 20
B126: 6.2 | C126: M | D126: > 75% | E126: 6.2-M-> 75% | F126: 25
B127: 6.3 | C127: M | D127: SI | E127: 6.3-M-SI | F127: 25
B128: 6.3 | C128: M | D128: NO | E128: 6.3-M-NO | F128: 0
B129: 6.5 | C129: M | D129: < 1% | E129: 6.5-M-< 1% | F129: 0
B130: 6.5 | C130: M | D130: 1 - 25% | E130: 6.5-M-1 - 25% | F130: 10
B131: 6.5 | C131: M | D131: 25 - 50% | E131: 6.5-M-25 - 50% | F131: 10
B132: 6.5 | C132: M | D132: 50 - 75% | E132: =CONCATENATE(B132,"-",C132,"-",D132) -> 6.5-M-50 - 75% | F132: 15
B133: 6.5 | C133: M | D133: > 75% | E133: 6.5-M-> 75% | F133: 25
B134: 7.1 | C134: M | D134: SI | E134: 7.1-M-SI | F134: 25
B135: 7.1 | C135: M | D135: NO | E135: 7.1-M-NO | F135: 0
B136: 7.2 | C136: M | D136: X | E136: 7.2-M-X | F136: 5
B137: 7.2 | C137: M | E137: 7.2-M- | F137: 0
B138: 7.21 | C138: M | D138: X | E138: 7.21-M-X | F138: 5
B139: 7.21 | C139: M | E139: 7.21-M- | F139: 0
B140: 7.22 | C140: M | D140: X | E140: 7.22-M-X | F140: 5
B141: 7.22 | C141: M | E141: 7.22-M- | F141: 0
B142: 7.23 | C142: M | D142: X | E142: 7.23-M-X | F142: 5
B143: 7.23 | C143: M | E143: 7.23-M- | F143: 0
B144: 7.24 | C144: M | D144: X | E144: 7.24-M-X | F144: 5
B145: 7.24 | C145: M | E145: 7.24-M- | F145: 0
B146: 7.25 | C146: M | D146: X | E146: 7.25-M-X | F146: 5
B147: 7.25 | C147: M | E147: 7.25-M- | F147: 0
B148: 7.26 | C148: M | D148: X | E148: 7.26-M-X | F148: 5
B149: 7.26 | C149: M | E149: 7.26-M- | F149: 0
B150: 7.27 | C150: M | D150: X | E150: 7.27-M-X | F150: 5
B151: 7.27 | C151: M | E151: 7.27-M- | F151: 0
B152: 7.3 | C152: M | D152: X | E152: 7.3-M-X | F152: 5
B153: 7.3 | C153: M | E153: 7.3-M- | F153: 0
B154: 7.31 | C154: M | D154: X | E154: 7.31-M-X | F154: 5
B155: 7.31 | C155: M | E155: 7.31-M- | F155: 0
B156: 7.32 | C156: M | D156: X | E156: 7.32-M-X | F156: 5
B157: 7.32 | C157: M | E157: 7.32-M- | F157: 0
B158: 7.33 | C158: M | D158: X | E158: 7.33-M-X | F158: 5
B159: 7.33 | C159: M | E159: 7.33-M- | F159: 0
B160: 7.34 | C160: M | D160: X | E160: 7.34-M-X | F160: 5
B161: 7.34 | C161: M | E161: 7.34-M- | F161: 0
B162: 7.35 | C162: M | D162: X | E162: 7.35-M-X | F162: 5
B163: 7.35 | C163: M | E163: 7.35-M- | F163: 0
B164: 7.4 | C164: M | D164: X | E164: 7.4-M-X | F164: 5
B165: 7.4 | C165: M | E165: 7.4-M- | F165: 0
B166: 7.41 | C166: M | D166: X | E166: 7.41-M-X | F166: 5
B167: 7.41 | C167: M | E167: 7.41-M- | F167: 0
B168: 7.42 | C168: M | D168: X | E168: 7.42-M-X | F168: 5
B169: 7.42 | C169: M | E169: 7.42-M- | F169: 0
B170: 7.43 | C170: M | D170: X | E170: 7.43-M-X | F170: 5
B171: 7.43 | C171: M | E171: 7.43-M- | F171: 0
B172: 7.44 | C172: M | D172: X | E172: 7.44-M-X | F172: 5
B173: 7.44 | C173: M | E173: 7.44-M- | F173: 0
B174: 7.45 | C174: M | D174: X | E174: 7.45-M-X | F174: 5
B175: 7.45 | C175: M | E175: 7.45-M- | F175: 0
B176: 7.5 | C176: M | D176: SI | E176: 7.5-M-SI | F176: 25
B177: 7.5 | C177: M | D177: NO | E177: 7.5-M-NO | F177: 0
B178: 7.5 | C178: M | D178: NO APLICA | E178: 7.5-M-NO APLICA | F178: 0
B179: 7.6 | C179: M | D179: X | E179: 7.6-M-X | F179: 5
B180: 7.6 | C180: M | E180: 7.6-M- | F180: 0
B181: 7.61 | C181: M | D181: X | E181: 7.61-M-X | F181: 5
B182: 7.61 | C182: M | E182: 7.61-M- | F182: 0
B183: 7.62 | C183: M | D183: X | E183: 7.62-M-X | F183: 5
B184: 7.62 | C184: M | E184: 7.62-M- | F184: 0
B185: 7.63 | C185: M | D185: X | E185: 7.63-M-X | F185: 5
B186: 7.63 | C186: M | E186: 7.63-M- | F186: 0
B187: 7.64 | C187: M | D187: X | E187: 7.64-M-X | F187: 5
B188: 7.64 | C188: M | E188: 7.64-M- | F188: 0
B189: 7.7 | C189: M | D189: SI | E189: 7.7-M-SI | F189: 25
B190: 7.7 | C190: M | D190: NO | E190: 7.7-M-NO | F190: 0
B191: 7.7 | C191: M | D191: NO APLICA | E191: 7.7-M-NO APLICA | F191: 0
B192: 8.2 | C192: M | D192: X | E192: 8.2-M-X | F192: 6.25
B193: 8.2 | C193: M | E193: =CONCATENATE(B193,"-",C193,"-",D193) -> 8.2-M- | F193: 0
B194: 8.21 | C194: M | D194: X | E194: 8.21-M-X | F194: 6.25
B195: 8.21 | C195: M | E195: =CONCATENATE(B195,"-",C195,"-",D195) -> 8.21-M- | F195: 0
B196: 8.22 | C196: M | D196: X | E196: 8.22-M-X | F196: 6.25
B197: 8.22 | C197: M | E197: 8.22-M- | F197: 0
B198: 8.23 | C198: M | D198: X | E198: 8.23-M-X | F198: 6.25
B199: 8.23 | C199: M | E199: 8.23-M- | F199: 0
B200: 8.2 | C200: p | D200: X | E200: 8.2-p-X | F200: 12.5
B201: 8.2 | C201: p | E201: 8.2-p- | F201: 0
... 917 more rows

Sheet Respuestas (hidden)
B2: Pregunta | C2: 1.1 | D2: SI | E2: SI | F2: SI
D3: NO | E3: NO | F3: NO
E4: NO APLICA | F4: NO APLICA
D6: < 1% | F6: Micro
D7: 1 - 25% | F7: Pequeña
D8: 25 - 50% | F8: Mediana
D9: 50 - 75% | F9: Grande
D10: > 75%
D11: No Aplica
D13: Iluminacion Efciente (T5 y Led) | F13: X
D14: Maquinaria Operada con motores electricos
D15: Flota con vehiculos electricos
D16: Campañas de eficiencia energetica
D18: Sin tratamiento
D19: Gestionado por un tercero
D20: Tratamientos preliminares
D21: Planta de tratamiento
D23: Totalmente
D24: Parcialmente ¿Cuál?
D25: No

Sheet Calificación (2) (hidden)
B2: Número Pregunta | C2: Tipo de Empresa | D2: Respuesta | E2: Clave | F2: Calificación
B3: 1.1 | C3: M | D3: SI | E3: =CONCATENATE(B3,"-",C3,"-",D3) -> 1.1-M-SI | F3: 25
B4: 1.1 | C4: M | D4: NO | E4: =CONCATENATE(B4,"-",C4,"-",D4) -> 1.1-M-NO | F4: 0
B5: 1.2 | C5: M | D5: X | E5: 1.2-M-X | F5: 5
B6: 1.2 | C6: M | E6: 1.2-M- | F6: 0
B7: 1.21 | C7: M | D7: X | E7: 1.21-M-X | F7: 5
B8: 1.21 | C8: M | E8: 1.21-M- | F8: 0
B9: 1.22 | C9: M | D9: X | E9: 1.22-M-X | F9: 5
B10: 1.22 | C10: M | E10: 1.22-M- | F10: 0
B11: 1.23 | C11: M | D11: X | E11: 1.23-M-X | F11: 5
B12: 1.23 | C12: M | E12: 1.23-M- | F12: 0
B13: 1.24 | C13: M | D13: X | E13: 1.24-M-X | F13: 5
B14: 1.24 | C14: M | E14: 1.24-M- | F14: 0
B15: 1.25 | C15: M | D15: X | E15: 1.25-M-X | F15: 5
B16: 1.25 | C16: M | E16: 1.25-M- | F16: 0
B17: 1.3 | C17: M | D17: < 1% | E17: 1.3-M-< 1% | F17: 0
B18: 1.3 | C18: M | D18: 1 - 25% | E18: 1.3-M-1 - 25% | F18: 10
B19: 1.3 | C19: M | D19: 25 - 50% | E19: 1.3-M-25 - 50% | F19: 15
B20: 1.3 | C20: M | D20: 50 - 75% | E20: 1.3-M-50 - 75% | F20: 20
B21: 1.3 | C21: M | D21: > 75% | E21: 1.3-M-> 75% | F21: 25
B22: 1.4 | C22: M | D22: SI | E22: =CONCATENATE(B22,"-",C22,"-",D22) -> 1.4-M-SI | F22: 25
B23: 1.4 | C23: M | D23: NO | E23: =CONCATENATE(B23,"-",C23,"-",D23) -> 1.4-M-NO | F23: 0
B24: 1.5 | C24: M | D24: X | E24: =CONCATENATE(B24,"-",C24,"-",D24) -> 1.5-M-X | F24: 10
B25: 1.5 | C25: M | E25: 1.5-M- | F25: 0
B26: 1.51 | C26: M | D26: X | E26: 1.51-M-X | F26: 10
B27: 1.51 | C27: M | E27: 1.51-M- | F27: 0
B28: 1.52 | C28: M | D28: X | E28: 1.52-M-X | F28: 10
B29: 1.52 | C29: M | E29: 1.52-M- | F29: 0
B30: 1.53 | C30: M | D30: X | E30: 1.53-M-X | F30: 10
B31: 1.53 | C31: M | E31: 1.53-M- | F31: 0
B32: 1.54 | C32: M | D32: X | E32: 1.54-M-X | F32: 10
B33: 1.54 | C33: M | E33: 1.54-M- | F33: 0
B34: 2.1 | C34: M | D34: SI | E34: =CONCATENATE(B34,"-",C34,"-",D34) -> 2.1-M-SI | F34: 25
B35: 2.1 | C35: M | D35: NO | E35: 2.1-M-NO | F35: 0
B36: 1.1 | C36: G | D36: SI | E36: =CONCATENATE(B36,"-",C36,"-",D36) -> 1.1-G-SI | F36: 100
B37: 1.1 | C37: G | D37: NO | E37: 1.1-G-NO | F37: 0
B38: 1.2 | C38: G | D38: X | E38: 1.2-G-X | F38: 20
B39: 1.2 | C39: G | E39: 1.2-G- | F39: 0
B40: 1.21 | C40: G | D40: X | E40: 1.21-G-X | F40: 20
B41: 1.21 | C41: G | E41: 1.21-G- | F41: 0
B42: 1.22 | C42: G | D42: X | E42: 1.22-G-X | F42: 20
B43: 1.22 | C43: G | E43: 1.22-G- | F43: 0
B44: 1.23 | C44: G | D44: X | E44: 1.23-G-X | F44: 20
B45: 1.23 | C45: G | E45: 1.23-G- | F45: 0
B46: 1.24 | C46: G | D46: X | E46: 1.24-G-X | F46: 20
B47: 1.24 | C47: G | E47: 1.24-G- | F47: 0
B48: 2.3 | C48: M | D48: X | E48: 2.3-M-X | F48: 15
B49: 2.3 | C49: M | E49: 2.3-M- | F49: 0
B50: 3.1 | C50: M | D50: SI | E50: 3.1-M-SI | F50: 25
B51: 3.1 | C51: M | D51: NO | E51: 3.1-M-NO | F51: 0
B52: 3.2 | C52: M | D52: X | E52: 3.2-M-X | F52: 10
B53: 3.2 | C53: M | E53: 3.2-M- | F53: 0
B54: 3.21 | C54: M | D54: X | E54: 3.21-M-X | F54: 10
B55: 3.21 | C55: M | E55: 3.21-M- | F55: 0
B56: 3.22 | C56: M | D56: X | E56: 3.22-M-X | F56: 10
B57: 3.22 | C57: M | E57: 3.22-M- | F57: 0
B58: 3.23 | C58: M | D58: X | E58: 3.23-M-X | F58: 10
B59: 3.23 | C59: M | E59: 3.23-M- | F59: 0
B60: 3.24 | C60: M | D60: X | E60: 3.24-M-X | F60: 10
B61: 3.24 | C61: M | E61: 3.24-M- | F61: 0
B62: 3.25 | C62: M | D62: X | E62: 3.25-M-X | F62: 10
B63: 3.25 | C63: M | E63: 3.25-M- | F63: 0
B64: 1.1 | C64: P | D64: SI | E64: 1.1-P-SI | F64: 50
B65: 1.1 | C65: P | D65: NO | E65: 1.1-P-NO | F65: 0
B66: 1.2 | C66: P | D66: X | E66: 1.2-P-X | F66: 10
B67: 1.2 | C67: P | E67: 1.2-P- | F67: 0
B68: 1.21 | C68: P | D68: X | E68: 1.21-P-X | F68: 10
B69: 1.21 | C69: P | E69: 1.21-P- | F69: 0
B70: 1.22 | C70: P | D70: X | E70: 1.22-P-X | F70: 10
B71: 1.22 | C71: P | E71: 1.22-P- | F71: 0
B72: 1.23 | C72: P | D72: X | E72: 1.23-P-X | F72: 10
B73: 1.23 | C73: P | E73: 1.23-P- | F73: 0
B74: 1.24 | C74: P | D74: X | E74: 1.24-P-X | F74: 10
B75: 1.24 | C75: P | E75: 1.24-P- | F75: 0
B76: 1.1 | C76: Me | D76: SI | E76: 1.1-Me-SI | F76: 75
B77: 1.1 | C77: Me | D77: NO | E77: 1.1-Me-NO | F77: 0
B78: 1.2 | C78: Me | D78: X | E78: 1.2-Me-X | F78: 15
B79: 1.2 | C79: Me | E79: 1.2-Me- | F79: 0
B80: 1.21 | C80: Me | D80: X | E80: 1.21-Me-X | F80: 15
B81: 1.21 | C81: Me | E81: 1.21-Me- | F81: 0
B82: 1.22 | C82: Me | D82: X | E82: 1.22-Me-X | F82: 15
B83: 1.22 | C83: Me | E83: 1.22-Me- | F83: 0
B84: 1.23 | C84: Me | D84: X | E84: 1.23-Me-X | F84: 15
B85: 1.23 | C85: Me | E85: 1.23-Me- | F85: 0
B86: 1.24 | C86: Me | D86: X | E86: 1.24-Me-X | F86: 15
B87: 1.24 | C87: Me | E87: 1.24-Me- | F87: 0
B88: 1.25 | C88: G | D88: X | E88: 1.25-G-X | F88: 20
B89: 1.25 | C89: G | E89: 1.25-G- | F89: 0
B90: 1.3 | C90: G | D90: < 1% | E90: 1.3-G-< 1% | F90: 0
B91: 1.3 | C91: G | D91: 1 - 25% | E91: 1.3-G-1 - 25% | F91: 25
B92: 1.3 | C92: G | D92: 25 - 50% | E92: 1.3-G-25 - 50% | F92: 50
B93: 1.3 | C93: G | D93: 50 - 75% | E93: 1.3-G-50 - 75% | F93: 75
B94: 1.3 | C94: G | D94: > 75% | E94: 1.3-G-> 75% | F94: 100
B95: 1.4 | C95: G | D95: SI | E95: 1.4-G-SI | F95: 100
B96: 1.4 | C96: G | D96: NO | E96: 1.4-G-NO | F96: 0
B97: 1.5 | C97: G | D97: X | E97: 1.5-G-X | F97: 25
B98: 1.5 | C98: G | E98: 1.5-G- | F98: 0
B99: 1.51 | C99: G | D99: X | E99: 1.51-G-X | F99: 25
B100: 4.1 | C100: M | D100: SI | E100: =CONCATENATE(B100,"-",C100,"-",D100) -> 4.1-M-SI | F100: 25
B101: 4.1 | C101: M | D101: NO | E101: 4.1-M-NO | F101: 0
B102: 1.25 | C102: P | D102: X | E102: 1.25-P-X | F102: 10
B103: 1.25 | C103: P | E103: 1.25-P- | F103: 0
B104: 1.25 | C104: Me | D104: X | E104: 1.25-Me-X | F104: 15
B105: 1.25 | C105: Me | E105: 1.25-Me- | F105: 0
B106: 1.51 | C106: G | E106: 1.51-G- | F106: 0
B107: 1.52 | C107: G | D107: X | E107: 1.52-G-X | F107: 25
B108: 4.2 | C108: M | D108: X | E108: 4.2-M-X | F108: 5
B109: 4.2 | C109: M | E109: 4.2-M- | F109: 0
B110: 4.21 | C110: M | D110: X | E110: 4.21-M-X | F110: 5
B111: 4.21 | C111: M | E111: 4.21-M- | F111: 0
B112: 4.22 | C112: M | D112: X | E112: 4.22-M-X | F112: 5
B113: 4.22 | C113: M | E113: 4.22-M- | F113: 0
B114: 4.23 | C114: M | D114: X | E114: 4.23-M-X | F114: 5
B115: 4.23 | C115: M | E115: 4.23-M- | F115: 0
B116: 4.24 | C116: M | D116: X | E116: 4.24-M-X | F116: 5
B117: 4.24 | C117: M | E117: 4.24-M- | F117: 0
B118: 1.3 | C118: P | D118: < 1% | E118: 1.3-P-< 1% | F118: 0
B119: 1.3 | C119: P | D119: 1 - 25% | E119: 1.3-P-1 - 25% | F119: 15
B120: 1.3 | C120: P | D120: 25 - 50% | E120: 1.3-P-25 - 50% | F120: 20
B121: 1.3 | C121: P | D121: 50 - 75% | E121: 1.3-P-50 - 75% | F121: 35
B122: 1.3 | C122: P | D122: > 75% | E122: 1.3-P-> 75% | F122: 50
B123: 1.4 | C123: P | D123: SI | E123: 1.4-P-SI | F123: 50
B124: 1.4 | C124: P | D124: NO | E124: 1.4-P-NO | F124: 0
B125: 1.5 | C125: P | D125: X | E125: 1.5-P-X | F125: 15
B126: 1.5 | C126: P | E126: 1.5-P- | F126: 0
B127: 1.51 | C127: P | D127: X | E127: 1.51-P-X | F127: 15
B128: 1.3 | C128: Me | D128: < 1% | E128: 1.3-Me-< 1% | F128: 0
B129: 1.3 | C129: Me | D129: 1 - 25% | E129: 1.3-Me-1 - 25% | F129: 20
B130: 1.3 | C130: Me | D130: 25 - 50% | E130: 1.3-Me-25 - 50% | F130: 30
B131: 1.3 | C131: Me | D131: 50 - 75% | E131: 1.3-Me-50 - 75% | F131: 55
B132: 1.3 | C132: Me | D132: > 75% | E132: 1.3-Me-> 75% | F132: 75
B133: 1.4 | C133: Me | D133: SI | E133: 1.4-Me-SI | F133: 75
B134: 1.4 | C134: Me | D134: NO | E134: 1.4-Me-NO | F134: 0
B135: 1.5 | C135: Me | D135: X | E135: 1.5-Me-X | F135: 20
B136: 1.5 | C136: Me | E136: 1.5-Me- | F136: 0
B137: 1.51 | C137: Me | D137: X | E137: 1.51-Me-X | F137: 20
B138: 1.52 | C138: G | E138: 1.52-G- | F138: 0
B139: 1.53 | C139: G | D139: X | E139: 1.53-G-X | F139: 25
B140: 1.53 | C140: G | E140: 1.53-G- | F140: 0
B141: 1.54 | C141: G | D141: X | E141: 1.54-G-X | F141: 25
B142: 1.54 | C142: G | E142: 1.54-G- | F142: 0
B143: 1.55 | C143: G | D143: X | E143: 1.55-G-X | F143: 25
B144: 1.55 | C144: G | E144: 1.55-G- | F144: 0
B145: 1.56 | C145: G | D145: X | E145: 1.56-G-X | F145: 25
B146: 1.56 | C146: G | E146: 1.56-G- | F146: 0
B147: 1.57 | C147: G | D147: X | E147: 1.57-G-X | F147: 25
B148: 4.3 | C148: M | D148: X | E148: 4.3-M-X | F148: 5
B149: 4.3 | C149: M | E149: 4.3-M- | F149: 0
B150: 4.31 | C150: M | D150: X | E150: 4.31-M-X | F150: 5
B151: 4.31 | C151: M | E151: 4.31-M- | F151: 0
B152: 4.32 | C152: M | D152: X | E152: 4.32-M-X | F152: 5
B153: 4.32 | C153: M | E153: 4.32-M- | F153: 0
B154: 4.33 | C154: M | D154: X | E154: 4.33-M-X | F154: 5
B155: 4.33 | C155: M | E155: 4.33-M- | F155: 0
B156: 4.34 | C156: M | D156: X | E156: 4.34-M-X | F156: 5
B157: 4.34 | C157: M | E157: 4.34-M- | F157: 0
B158: 4.35 | C158: M | D158: X | E158: 4.35-M-X | F158: 5
B159: 4.35 | C159: M | E159: 4.35-M- | F159: 0
B160: 4.36 | C160: M | D160: X | E160: 4.36-M-X | F160: 5
B161: 4.36 | C161: M | E161: 4.36-M- | F161: 0
B162: 4.4 | C162: M | D162: X | E162: 4.4-M-X | F162: 5
B163: 4.4 | C163: M | E163: 4.4-M- | F163: 0
B164: 4.41 | C164: M | D164: X | E164: =CONCATENATE(B164,"-",C164,"-",D164) -> 4.41-M-X | F164: 20
B165: 4.41 | C165: M | E165: 4.41-M- | F165: 0
B166: 5.1 | C166: M | D166: SI | E166: 5.1-M-SI | F166: 25
B167: 5.1 | C167: M | D167: NO | E167: 5.1-M-NO | F167: 0
B168: 5.2 | C168: M | D168: SI ¿Cuáles? | E168: 5.2-M-SI ¿Cuáles? | F168: 5
B169: 5.2 | C169: M | D169: NO | E169: 5.2-M-NO | F169: 0
B170: 5.21 | C170: M | D170: SI ¿Cuáles? | E170: 5.21-M-SI ¿Cuáles? | F170: 5
B171: 5.21 | C171: M | D171: NO | E171: 5.21-M-NO | F171: 0
B172: 5.22 | C172: M | D172: SI ¿Cuáles? | E172: 5.22-M-SI ¿Cuáles? | F172: 5
B173: 5.22 | C173: M | D173: NO | E173: 5.22-M-NO | F173: 0
B174: 5.23 | C174: M | D174: SI ¿Cuáles? | E174: 5.23-M-SI ¿Cuáles? | F174: 5
B175: 5.23 | C175: M | D175: NO | E175: 5.23-M-NO | F175: 0
B176: 5.24 | C176: M | D176: SI ¿Cuáles? | E176: 5.24-M-SI ¿Cuáles? | F176: 5
B177: 5.24 | C177: M | D177: NO | E177: 5.24-M-NO | F177: 0
B178: 6.1 | C178: M | D178: SI | E178: 6.1-M-SI | F178: 25
B179: 6.1 | C179: M | D179: NO | E179: 6.1-M-NO | F179: 0
B180: 6.2 | C180: M | D180: < 1% | E180: 6.2-M-< 1% | F180: 0
B181: 6.2 | C181: M | D181: 1 - 25% | E181: 6.2-M-1 - 25% | F181: 10
B182: 6.2 | C182: M | D182: 25 - 50% | E182: 6.2-M-25 - 50% | F182: 15
B183: 6.2 | C183: M | D183: 50 - 75% | E183: 6.2-M-50 - 75% | F183: 20
B184: 6.2 | C184: M | D184: > 75% | E184: 6.2-M-> 75% | F184: 25
B185: 6.3 | C185: M | D185: SI | E185: 6.3-M-SI | F185: 25
B186: 6.3 | C186: M | D186: NO | E186: 6.3-M-NO | F186: 0
B187: 6.5 | C187: M | D187: < 1% | E187: 6.5-M-< 1% | F187: 0
B188: 6.5 | C188: M | D188: 1 - 25% | E188: 6.5-M-1 - 25% | F188: 10
B189: 6.5 | C189: M | D189: 25 - 50% | E189: 6.5-M-25 - 50% | F189: 10
B190: 6.5 | C190: M | D190: 50 - 75% | E190: 6.5-M-50 - 75% | F190: 15
B191: 6.5 | C191: M | D191: > 75% | E191: 6.5-M-> 75% | F191: 25
B192: 7.1 | C192: M | D192: SI | E192: 7.1-M-SI | F192: 25
B193: 7.1 | C193: M | D193: NO | E193: 7.1-M-NO | F193: 0
B194: 7.2 | C194: M | D194: X | E194: 7.2-M-X | F194: 5
B195: 7.2 | C195: M | E195: 7.2-M- | F195: 0
B196: 7.21 | C196: M | D196: X | E196: 7.21-M-X | F196: 5
B197: 7.21 | C197: M | E197: 7.21-M- | F197: 0
B198: 7.22 | C198: M | D198: X | E198: 7.22-M-X | F198: 5
B199: 7.22 | C199: M | E199: 7.22-M- | F199: 0
B200: 7.23 | C200: M | D200: X | E200: 7.23-M-X | F200: 5
B201: 7.23 | C201: M | E201: 7.23-M- | F201: 0
... 761 more rows
